Publisher Label,Publisher URI,"Supplier","Net Amount (£)","Organisational Unit","Merchant Category Code","Purpose","Payment Date"
"Wolverhampton City Council","http://opendatacommunities.org/id/metropolitan-district-council/wolverhampton","BHAM REGISTER OFF","40.00","Looked After Team 2","9399","Services - Fees and Charges","30/09/2015"
"Wolverhampton City Council","http://opendatacommunities.org/id/metropolitan-district-council/wolverhampton","TESCO STORES 5194","120.49","Towers Outdoor Education Centre","5411","Provisions (Not for resale)","30/09/2015"
"Wolverhampton City Council","http://opendatacommunities.org/id/metropolitan-district-council/wolverhampton","OFFICE DEPOT","28.32","CIN - Berries CC - Area 7","5111","Stationery","30/09/2015"
"Wolverhampton City Council","http://opendatacommunities.org/id/metropolitan-district-council/wolverhampton","MAPLIN WOLVERHAMPT WV1","109.62","Technical Material","5732","Equipment - Purchase","30/09/2015"
"Wolverhampton City Council","http://opendatacommunities.org/id/metropolitan-district-council/wolverhampton","MARKS & SPENCER","10.00","Whitmore Reans - CIN SWU S17","5411","Provisions (Not for resale)","30/09/2015"
"Wolverhampton City Council","http://opendatacommunities.org/id/metropolitan-district-council/wolverhampton","SQUARESPACE INC.","145.94","Technical Support","7372","Computing - Purchase of Software","30/09/2015"
"Wolverhampton City Council","http://opendatacommunities.org/id/metropolitan-district-council/wolverhampton","HILTON","20.00","School Improvement","3504","Conference Expenses","30/09/2015"
"Wolverhampton City Council","http://opendatacommunities.org/id/metropolitan-district-council/wolverhampton","PRINTCARRIER.COM","84.00","Civic & Wulfrun In-house Promotions","2741","Materials","30/09/2015"
"Wolverhampton City Council","http://opendatacommunities.org/id/metropolitan-district-council/wolverhampton","KIDSCOPEEDU","247.55","Children & Family Contact Services","5932","Equipment - Purchase","30/09/2015"
"Wolverhampton City Council","http://opendatacommunities.org/id/metropolitan-district-council/wolverhampton","BHS 072","22.00","Whitmore Reans - CIN SWU S17","5311","Equipment - Purchase","30/09/2015"
"Wolverhampton City Council","http://opendatacommunities.org/id/metropolitan-district-council/wolverhampton","PAYPAL  JMGROUPLTD","55.00","Education Catering - General Overheads","8999","Subscriptions","30/09/2015"
"Wolverhampton City Council","http://opendatacommunities.org/id/metropolitan-district-council/wolverhampton","SURVEYMONKEY.COM","249.17","Information & Intelligence","4816","Computing - Purchase of Software","30/09/2015"
"Wolverhampton City Council","http://opendatacommunities.org/id/metropolitan-district-council/wolverhampton","ASDA SUPERSTORE","34.91","Swan Bank","5411","Provisions (Not for resale)","30/09/2015"
"Wolverhampton City Council","http://opendatacommunities.org/id/metropolitan-district-council/wolverhampton","Virgintrains.co.uk","5.40","Members Expenses","4112","Public Transport","30/09/2015"
"Wolverhampton City Council","http://opendatacommunities.org/id/metropolitan-district-council/wolverhampton","ASDA SUPERSTORE","53.00","Whitmore Reans - CIN SWU S17","5411","Provisions (Not for resale)","30/09/2015"
"Wolverhampton City Council","http://opendatacommunities.org/id/metropolitan-district-council/wolverhampton","MARKS & SPENCER","25.00","Civic Centre Catering","5411","Provisions (Not for resale)","30/09/2015"
"Wolverhampton City Council","http://opendatacommunities.org/id/metropolitan-district-council/wolverhampton","Amazon UK Marketplace","22.02","Towers Outdoor Education Centre","5942","Equipment - Purchase","30/09/2015"
"Wolverhampton City Council","http://opendatacommunities.org/id/metropolitan-district-council/wolverhampton","ARGOS RETAIL GROUP","232.94","Valley Park - CIN SWU S17","5310","Furniture","30/09/2015"
"Wolverhampton City Council","http://opendatacommunities.org/id/metropolitan-district-council/wolverhampton","LADS AND LASSES SCHOOL","15.48","Whitmore Reans - CIN SWU S17","5137","Clothing / Uniforms","30/09/2015"
"Wolverhampton City Council","http://opendatacommunities.org/id/metropolitan-district-council/wolverhampton","PRIMARK","24.00","Graiseley - CIN SWU S17","5651","Services - Supplies & Services to users","30/09/2015"
"Wolverhampton City Council","http://opendatacommunities.org/id/metropolitan-district-council/wolverhampton","ASDA SUPERSTORE","13.50","Valley Park - CIN SWU S17","5411","Provisions (Not for resale)","30/09/2015"
"Wolverhampton City Council","http://opendatacommunities.org/id/metropolitan-district-council/wolverhampton","ASDA HOME SHOPPING","44.38","46a, Second Avenue, Low Hill","5411","Provisions (Not for resale)","30/09/2015"
"Wolverhampton City Council","http://opendatacommunities.org/id/metropolitan-district-council/wolverhampton","Amazon UK Marketplace","19.99","Bert Williams Leisure Centre","5942","Equipment - Purchase","30/09/2015"
"Wolverhampton City Council","http://opendatacommunities.org/id/metropolitan-district-council/wolverhampton","B & Q","12.74","Caretakers Community Centre","5211","R&M - Departmental planned (external)","30/09/2015"
"Wolverhampton City Council","http://opendatacommunities.org/id/metropolitan-district-council/wolverhampton","NATWEST BANK","20.00","Community Enablement","6011","Public Transport","30/09/2015"
"Wolverhampton City Council","http://opendatacommunities.org/id/metropolitan-district-council/wolverhampton","LOYD WEDNESFIELD (7733","40.00","Duke Street Bungalows","6011","Financial Assistance In Exceptional Circ","30/09/2015"
"Wolverhampton City Council","http://opendatacommunities.org/id/metropolitan-district-council/wolverhampton","NATWEST BANK","40.00","Community Enablement","6011","Materials","30/09/2015"
"Wolverhampton City Council","http://opendatacommunities.org/id/metropolitan-district-council/wolverhampton","TRAINLINE","189.72","Economic Inclusion","4112","Public Transport","30/09/2015"
"Wolverhampton City Council","http://opendatacommunities.org/id/metropolitan-district-council/wolverhampton","WEST MID TRAVEL","789.10","Banking","4131","Public Transport","30/09/2015"
"Wolverhampton City Council","http://opendatacommunities.org/id/metropolitan-district-council/wolverhampton","OFFICE DEPOT","1.52","Specialist Support Service - North","5111","Stationery","30/09/2015"
"Wolverhampton City Council","http://opendatacommunities.org/id/metropolitan-district-council/wolverhampton","POST OFFICE COUNTER","31.50","MAST 4 - Warstones","9402","Comms - Postage","30/09/2015"
"Wolverhampton City Council","http://opendatacommunities.org/id/metropolitan-district-council/wolverhampton","WOLVES CC","57.75","Priory Green - CIN SWU S17","9399","No Recourse to Public Funds","30/09/2015"
"Wolverhampton City Council","http://opendatacommunities.org/id/metropolitan-district-council/wolverhampton","WEST COAST TRAINS","56.70","Graiseley - CIN SWU S17","4112","Public Transport","30/09/2015"
"Wolverhampton City Council","http://opendatacommunities.org/id/metropolitan-district-council/wolverhampton","FACEBOOK D94TP72B92","600.18","Communications & Marketing - General","7311","Marketing \ Non-staff advertising","29/09/2015"
"Wolverhampton City Council","http://opendatacommunities.org/id/metropolitan-district-council/wolverhampton","WEST COAST TRAINS","37.70","Hospital Team","4112","Public Transport","29/09/2015"
"Wolverhampton City Council","http://opendatacommunities.org/id/metropolitan-district-council/wolverhampton","ASDA HOME SHOPPING","45.84","Ernest Bold Court","5411","Provisions (Not for resale)","29/09/2015"
"Wolverhampton City Council","http://opendatacommunities.org/id/metropolitan-district-council/wolverhampton","WILKO RETAIL LIMIT","3.33","Technician","5722","Equipment - Purchase","29/09/2015"
"Wolverhampton City Council","http://opendatacommunities.org/id/metropolitan-district-council/wolverhampton","E01510300000000","80.00","Emergency Duty Team","6011","Financial Assistance In Exceptional Circ","29/09/2015"
"Wolverhampton City Council","http://opendatacommunities.org/id/metropolitan-district-council/wolverhampton","TESCO STORES 3414","2.00","Mayoral Expenses","5411","Provisions (Not for resale)","29/09/2015"
"Wolverhampton City Council","http://opendatacommunities.org/id/metropolitan-district-council/wolverhampton","PAYPAL  SIMONBRIERC","50.00","Generic Marketing","5735","Services - Professional Fees","29/09/2015"
"Wolverhampton City Council","http://opendatacommunities.org/id/metropolitan-district-council/wolverhampton","SAINSBURYS (2340)","40.50","Discretionary Fund","5411","Provisions (Not for resale)","29/09/2015"
"Wolverhampton City Council","http://opendatacommunities.org/id/metropolitan-district-council/wolverhampton","MERCURE WOLVERHAMPTON","339.00","Learning Disabilities Management","7011","Training Expenses","29/09/2015"
"Wolverhampton City Council","http://opendatacommunities.org/id/metropolitan-district-council/wolverhampton","SAME DAY DISPATCH SERV","100.00","Planning","4215","Comms - Postage","29/09/2015"
"Wolverhampton City Council","http://opendatacommunities.org/id/metropolitan-district-council/wolverhampton","ASDA HOME SHOPPING","0.06","Ernest Bold Court","5411","Provisions (Not for resale)","29/09/2015"
"Wolverhampton City Council","http://opendatacommunities.org/id/metropolitan-district-council/wolverhampton","Amazon UK Marketplace","12.94","Towers Outdoor Education Centre","5942","Equipment - Hire","29/09/2015"
"Wolverhampton City Council","http://opendatacommunities.org/id/metropolitan-district-council/wolverhampton","Cross Country","195.00","Commissioning Disabilities","4112","Public Transport","29/09/2015"
"Wolverhampton City Council","http://opendatacommunities.org/id/metropolitan-district-council/wolverhampton","ASDA STORE","10.35","Fostering Team & Allowances","5411","Provisions (Not for resale)","29/09/2015"
"Wolverhampton City Council","http://opendatacommunities.org/id/metropolitan-district-council/wolverhampton","Amazon UK Marketplace","12.93","Towers Outdoor Education Centre","5942","Equipment - Purchase","29/09/2015"
"Wolverhampton City Council","http://opendatacommunities.org/id/metropolitan-district-council/wolverhampton","TRAINLINE","18.82","Berries - CIN SWU S17","4112","Public Transport","29/09/2015"
"Wolverhampton City Council","http://opendatacommunities.org/id/metropolitan-district-council/wolverhampton","Amazon UK Marketplace","12.93","Towers Outdoor Education Centre","5942","Equipment - Purchase","29/09/2015"
"Wolverhampton City Council","http://opendatacommunities.org/id/metropolitan-district-council/wolverhampton","Cross Country","168.00","Commissioning Disabilities","4112","Public Transport","29/09/2015"
"Wolverhampton City Council","http://opendatacommunities.org/id/metropolitan-district-council/wolverhampton","Amazon UK Marketplace","12.93","Towers Outdoor Education Centre","5942","Equipment - Hire","29/09/2015"
"Wolverhampton City Council","http://opendatacommunities.org/id/metropolitan-district-council/wolverhampton","CUMMINGS BROTHERS LOCK","5.42","Caretakers Community Centre","7399","R&M - Departmental planned (external)","29/09/2015"
"Wolverhampton City Council","http://opendatacommunities.org/id/metropolitan-district-council/wolverhampton","Amazon UK Marketplace","16.47","Global Budgets","5942","Stationery","29/09/2015"
"Wolverhampton City Council","http://opendatacommunities.org/id/metropolitan-district-council/wolverhampton","OFFICE DEPOT","11.40","Bradley Resource Centre","5111","Stationery","29/09/2015"
"Wolverhampton City Council","http://opendatacommunities.org/id/metropolitan-district-council/wolverhampton","TESCO - SDY LTD","262.49","LAC Transitions Team","5999","Equipment - Purchase","29/09/2015"
"Wolverhampton City Council","http://opendatacommunities.org/id/metropolitan-district-council/wolverhampton","BRITISH HEART FOUNDATI","389.00","Windsor - CIN SWU S17","8398","Services - Supplies & Services to users","29/09/2015"
"Wolverhampton City Council","http://opendatacommunities.org/id/metropolitan-district-council/wolverhampton","WWW.PROJECTOR-SCRE","167.00","Art Gallery","5943","Stationery","28/09/2015"
"Wolverhampton City Council","http://opendatacommunities.org/id/metropolitan-district-council/wolverhampton","OFFICE DEPOT","67.87","Specialist Support Service - North","5111","Stationery","28/09/2015"
"Wolverhampton City Council","http://opendatacommunities.org/id/metropolitan-district-council/wolverhampton","WEST COAST TRAINS","33.00","MAST 2 - Bilston","4112","Grant Payments","28/09/2015"
"Wolverhampton City Council","http://opendatacommunities.org/id/metropolitan-district-council/wolverhampton","TESCO STORES 5194","-1.75","Towers Outdoor Education Centre","5411","Provisions (Not for resale)","28/09/2015"
"Wolverhampton City Council","http://opendatacommunities.org/id/metropolitan-district-council/wolverhampton","WIX.COM","46.57","Technical Support","5734","Computing - Purchase of Software","28/09/2015"
"Wolverhampton City Council","http://opendatacommunities.org/id/metropolitan-district-council/wolverhampton","G & M HALE (SUNDRIES)","21.60","Creative Studies Delivery Area","5992","Materials for resale","28/09/2015"
"Wolverhampton City Council","http://opendatacommunities.org/id/metropolitan-district-council/wolverhampton","WAITROSE 696","13.16","MAST 4 - Warstones","5411","Provisions (Not for resale)","28/09/2015"
"Wolverhampton City Council","http://opendatacommunities.org/id/metropolitan-district-council/wolverhampton","PLV Marston Holdings L","410.00","LAC Admin Team","7399","Equipment - Purchase","28/09/2015"
"Wolverhampton City Council","http://opendatacommunities.org/id/metropolitan-district-council/wolverhampton","ARGOS LTD","165.78","LAC Transitions Team","5310","Equipment - Purchase","28/09/2015"
"Wolverhampton City Council","http://opendatacommunities.org/id/metropolitan-district-council/wolverhampton","OFFICE DEPOT","75.60","Members Expenses","5111","Stationery","28/09/2015"
"Wolverhampton City Council","http://opendatacommunities.org/id/metropolitan-district-council/wolverhampton","TFM FARM & COUNTRY SUP","154.44","Northicote Farm","5399","Equipment - Purchase","28/09/2015"
"Wolverhampton City Council","http://opendatacommunities.org/id/metropolitan-district-council/wolverhampton","Amazon UK Marketplace","14.77","Bert Williams Leisure Centre","5942","Equipment - Purchase","28/09/2015"
"Wolverhampton City Council","http://opendatacommunities.org/id/metropolitan-district-council/wolverhampton","OFFICE DEPOT","4.99","Bert Williams Leisure Centre","5111","Stationery","28/09/2015"
"Wolverhampton City Council","http://opendatacommunities.org/id/metropolitan-district-council/wolverhampton","CRS","500.00","Children's Village Children Centre","5713","Equipment - Purchase","28/09/2015"
"Wolverhampton City Council","http://opendatacommunities.org/id/metropolitan-district-council/wolverhampton","SAINSBURYS 0823","18.30","Revenues","5411","Provisions (Not for resale)","28/09/2015"
"Wolverhampton City Council","http://opendatacommunities.org/id/metropolitan-district-council/wolverhampton","Amazon UK Marketplace","46.41","Service Wide","5942","Equipment - Purchase","28/09/2015"
"Wolverhampton City Council","http://opendatacommunities.org/id/metropolitan-district-council/wolverhampton","ASDA HOME SHOPPING","0.02","Ernest Bold Court","5411","Provisions (Not for resale)","28/09/2015"
"Wolverhampton City Council","http://opendatacommunities.org/id/metropolitan-district-council/wolverhampton","COMBINED COURT","2975.00","Head of Service - CINCP","9222","Services - Fees and Charges","28/09/2015"
"Wolverhampton City Council","http://opendatacommunities.org/id/metropolitan-district-council/wolverhampton","ESENDEX LIMITED","45.00","Civic Halls Non Direct Management A/C","4814","Comms - Telephone Call charges","28/09/2015"
"Wolverhampton City Council","http://opendatacommunities.org/id/metropolitan-district-council/wolverhampton","PHONEPYT HMRC","600.66","Civic Hall Out-house Promotions","9311","Services - Professional Fees","28/09/2015"
"Wolverhampton City Council","http://opendatacommunities.org/id/metropolitan-district-council/wolverhampton","TESCO STORES 6197","76.60","Windmill Lane - Respite Home","5411","Provisions (Not for resale)","28/09/2015"
"Wolverhampton City Council","http://opendatacommunities.org/id/metropolitan-district-council/wolverhampton","TRAINLINE","8.41","SEN Special Education Admin","4112","Public Transport","28/09/2015"
"Wolverhampton City Council","http://opendatacommunities.org/id/metropolitan-district-council/wolverhampton","POST OFFICE COUNTER","11.70","Legal Services","9402","Comms - Postage","28/09/2015"
"Wolverhampton City Council","http://opendatacommunities.org/id/metropolitan-district-council/wolverhampton","POUNDWORLD RETAIL","6.93","Head of Service - LAC","5310","Equipment - Purchase","28/09/2015"
"Wolverhampton City Council","http://opendatacommunities.org/id/metropolitan-district-council/wolverhampton","WEST COAST TRAINS","7.50","Black Art Movement","4112","Public Transport","28/09/2015"
"Wolverhampton City Council","http://opendatacommunities.org/id/metropolitan-district-council/wolverhampton","ITUNES.COM/BILL","66.50","Learning Technologies","5735","Computing - Purchase of Software","28/09/2015"
"Wolverhampton City Council","http://opendatacommunities.org/id/metropolitan-district-council/wolverhampton","TVLICENSING.CO.UK","145.50","LAC Transitions Team","7392","Client Allowances","28/09/2015"
"Wolverhampton City Council","http://opendatacommunities.org/id/metropolitan-district-council/wolverhampton","OFFICE DEPOT","61.15","Bradley Resource Centre","5111","Stationery","28/09/2015"
"Wolverhampton City Council","http://opendatacommunities.org/id/metropolitan-district-council/wolverhampton","MBL SEMINARS","60.00","Legal Services","8299","Training Expenses","28/09/2015"
"Wolverhampton City Council","http://opendatacommunities.org/id/metropolitan-district-council/wolverhampton","WIX.COM","46.57","Technical Support","5734","Computing - Purchase of Software","28/09/2015"
"Wolverhampton City Council","http://opendatacommunities.org/id/metropolitan-district-council/wolverhampton","G & M HALE LTD","139.40","Creative Studies Delivery Area","5992","Materials for resale","28/09/2015"
"Wolverhampton City Council","http://opendatacommunities.org/id/metropolitan-district-council/wolverhampton","TRAINLINE","85.58","Maintenance & Technical Materials","4112","Public Transport","28/09/2015"
"Wolverhampton City Council","http://opendatacommunities.org/id/metropolitan-district-council/wolverhampton","ARGOS LTD","498.61","LAC Transitions Team","5310","Equipment - Purchase","28/09/2015"
"Wolverhampton City Council","http://opendatacommunities.org/id/metropolitan-district-council/wolverhampton","BARCLAYS BANK PLC","100.00","Dove - CIN SWU S17","6011","Financial Assistance In Exceptional Circ","28/09/2015"
"Wolverhampton City Council","http://opendatacommunities.org/id/metropolitan-district-council/wolverhampton","ASDA HOME SHOPPING","68.76","Ernest Bold Court","5411","Provisions (Not for resale)","28/09/2015"
"Wolverhampton City Council","http://opendatacommunities.org/id/metropolitan-district-council/wolverhampton","CURRYS ONLINE","149.99","Windsor - CIN SWU S17","5732","Equipment - Purchase","28/09/2015"
"Wolverhampton City Council","http://opendatacommunities.org/id/metropolitan-district-council/wolverhampton","WWW.RAJAPACK.CO.UK","63.47","Sound Matters","5943","Stationery","28/09/2015"
"Wolverhampton City Council","http://opendatacommunities.org/id/metropolitan-district-council/wolverhampton","Amazon Svcs Europe,SAR","10.98","Global Budgets","5942","Books","28/09/2015"
"Wolverhampton City Council","http://opendatacommunities.org/id/metropolitan-district-council/wolverhampton","WWW.VIKING-DIRECT.CO.U","32.89","Generic Marketing","5111","Equipment - Purchase","25/09/2015"
"Wolverhampton City Council","http://opendatacommunities.org/id/metropolitan-district-council/wolverhampton","Amazon EU","22.91","Towers Outdoor Education Centre","5969","Equipment - Purchase","25/09/2015"
"Wolverhampton City Council","http://opendatacommunities.org/id/metropolitan-district-council/wolverhampton","WILKO RETAIL LIMIT","18.96","Technician","5722","Equipment - Purchase","25/09/2015"
"Wolverhampton City Council","http://opendatacommunities.org/id/metropolitan-district-council/wolverhampton","ASDA SUPERSTORE","95.67","Swan Bank","5411","Provisions (Not for resale)","25/09/2015"
"Wolverhampton City Council","http://opendatacommunities.org/id/metropolitan-district-council/wolverhampton","AMEY LG LIMITED","60.00","Service Wide","5211","Contract Cleaning","25/09/2015"
"Wolverhampton City Council","http://opendatacommunities.org/id/metropolitan-district-council/wolverhampton","SANDWELL MBC/INET","10.00","Looked After Team 2","9399","Services - Fees and Charges","25/09/2015"
"Wolverhampton City Council","http://opendatacommunities.org/id/metropolitan-district-council/wolverhampton","TOOLSTATION LTD","10.15","Meals on Wheels","5251","Equipment - R & M","25/09/2015"
"Wolverhampton City Council","http://opendatacommunities.org/id/metropolitan-district-council/wolverhampton","REGISTRARS OFFICE","58.00","Head of Service - CINCP","8299","Services - Professional Fees","25/09/2015"
"Wolverhampton City Council","http://opendatacommunities.org/id/metropolitan-district-council/wolverhampton","OFFICE DEPOT","3.04","Children's Village Children Centre","5111","Stationery","25/09/2015"
"Wolverhampton City Council","http://opendatacommunities.org/id/metropolitan-district-council/wolverhampton","WM MORRISONS","12.71","Head of Service - LAC","5411","Provisions (Not for resale)","25/09/2015"
"Wolverhampton City Council","http://opendatacommunities.org/id/metropolitan-district-council/wolverhampton","Virgintrains.co.uk","92.80","Members Expenses","4112","Public Transport","25/09/2015"
"Wolverhampton City Council","http://opendatacommunities.org/id/metropolitan-district-council/wolverhampton","BOC GASES","936.62","Catering Overhead Account","5169","Materials","25/09/2015"
"Wolverhampton City Council","http://opendatacommunities.org/id/metropolitan-district-council/wolverhampton","HMCOURTS-SERVICE.G","1116.00","Revenues","9222","Services - Fees and Charges","25/09/2015"
"Wolverhampton City Council","http://opendatacommunities.org/id/metropolitan-district-council/wolverhampton","UOW PRINT SERVICES","125.43","Corporate Procurement Unit","8220","Printing","25/09/2015"
"Wolverhampton City Council","http://opendatacommunities.org/id/metropolitan-district-council/wolverhampton","MAILCHIMP","33.18","City Direct","7399","Equipment - Purchase","25/09/2015"
"Wolverhampton City Council","http://opendatacommunities.org/id/metropolitan-district-council/wolverhampton","HMCOURTS-SERVICE.G","27.00","Revenues","9222","Services - Fees and Charges","25/09/2015"
"Wolverhampton City Council","http://opendatacommunities.org/id/metropolitan-district-council/wolverhampton","TOOLSTATION LTD","30.07","Meals on Wheels","5251","Equipment - Purchase","25/09/2015"
"Wolverhampton City Council","http://opendatacommunities.org/id/metropolitan-district-council/wolverhampton","Virgintrains.co.uk","-175.80","Legal Services","4112","Public Transport","25/09/2015"
"Wolverhampton City Council","http://opendatacommunities.org/id/metropolitan-district-council/wolverhampton","TESCO STORES 5194","54.79","Towers Outdoor Education Centre","5411","Provisions (Not for resale)","25/09/2015"
"Wolverhampton City Council","http://opendatacommunities.org/id/metropolitan-district-council/wolverhampton","RBSIF","302.85","Art Gallery","6012","Marketing \ Non-staff advertising","25/09/2015"
"Wolverhampton City Council","http://opendatacommunities.org/id/metropolitan-district-council/wolverhampton","Virgintrains.co.uk","280.50","Scrutiny & Transparency","4112","Public Transport","25/09/2015"
"Wolverhampton City Council","http://opendatacommunities.org/id/metropolitan-district-council/wolverhampton","SAINSBURYS (2340)","5.67","MAST 3 - Graiseley","5411","Provisions (Not for resale)","25/09/2015"
"Wolverhampton City Council","http://opendatacommunities.org/id/metropolitan-district-council/wolverhampton","THE COAL AUTHORITY","69.00","Disposal Costs","9399","Services - Fees and Charges","25/09/2015"
"Wolverhampton City Council","http://opendatacommunities.org/id/metropolitan-district-council/wolverhampton","WAITROSE 696","22.00","MAST 4 - Warstones","5411","Provisions (Not for resale)","25/09/2015"
"Wolverhampton City Council","http://opendatacommunities.org/id/metropolitan-district-council/wolverhampton","WWW.VIKING-DIRECT.CO.U","4.67","Looked After Team 2","5111","Stationery","25/09/2015"
"Wolverhampton City Council","http://opendatacommunities.org/id/metropolitan-district-council/wolverhampton","HMCOURTS-SERVICE.G","228.00","Revenues","9222","Services - Fees and Charges","25/09/2015"
"Wolverhampton City Council","http://opendatacommunities.org/id/metropolitan-district-council/wolverhampton","CUMMINGS BROTHERS LOCK","12.92","Caretakers Community Centre","7399","R&M - Departmental planned (external)","25/09/2015"
"Wolverhampton City Council","http://opendatacommunities.org/id/metropolitan-district-council/wolverhampton","GRO HM PASSPORT OFFICE","70.20","Head of Service - CINCP","9399","Services - Fees and Charges","25/09/2015"
"Wolverhampton City Council","http://opendatacommunities.org/id/metropolitan-district-council/wolverhampton","SANDWELL MBC/INET","10.00","Looked After Team 2","9399","Services - Fees and Charges","25/09/2015"
"Wolverhampton City Council","http://opendatacommunities.org/id/metropolitan-district-council/wolverhampton","TRAINLINE","30.85","Adoption Team","4112","Public Transport","25/09/2015"
"Wolverhampton City Council","http://opendatacommunities.org/id/metropolitan-district-council/wolverhampton","ARGOS RETAIL GROUP","144.95","LAC Transitions Team","5310","Equipment - Purchase","25/09/2015"
"Wolverhampton City Council","http://opendatacommunities.org/id/metropolitan-district-council/wolverhampton","PARTY DELIGHTS LIMITED","35.87","Bonfire","5947","Equipment - Purchase","25/09/2015"
"Wolverhampton City Council","http://opendatacommunities.org/id/metropolitan-district-council/wolverhampton","WEST COAST TRAINS","7.50","Maintenance & Technical Materials","4112","Public Transport","25/09/2015"
"Wolverhampton City Council","http://opendatacommunities.org/id/metropolitan-district-council/wolverhampton","WEST COAST TRAINS","7.08","Cemeteries","7523","Car Allowances","25/09/2015"
"Wolverhampton City Council","http://opendatacommunities.org/id/metropolitan-district-council/wolverhampton","Amazon UK Marketplace","11.33","Towers Outdoor Education Centre","5942","Books","25/09/2015"
"Wolverhampton City Council","http://opendatacommunities.org/id/metropolitan-district-council/wolverhampton","TRAINLINE","65.59","AES Staff Development","4112","Public Transport","25/09/2015"
"Wolverhampton City Council","http://opendatacommunities.org/id/metropolitan-district-council/wolverhampton","OFFICE DEPOT","31.00","Revenues","5111","Stationery","25/09/2015"
"Wolverhampton City Council","http://opendatacommunities.org/id/metropolitan-district-council/wolverhampton","TFGM METROLINK","3.25","Cemeteries","4131","Public Transport","25/09/2015"
"Wolverhampton City Council","http://opendatacommunities.org/id/metropolitan-district-council/wolverhampton","WEST COAST TRAINS","20.00","Cemeteries","4112","Public Transport","25/09/2015"
"Wolverhampton City Council","http://opendatacommunities.org/id/metropolitan-district-council/wolverhampton","PREMIER INN","73.33","CIN - Bilston CC2 - Area 2","3811","Accommodation Costs","25/09/2015"
"Wolverhampton City Council","http://opendatacommunities.org/id/metropolitan-district-council/wolverhampton","Virgintrains.co.uk","116.80","Condition Surveys","4112","Public Transport","24/09/2015"
"Wolverhampton City Council","http://opendatacommunities.org/id/metropolitan-district-council/wolverhampton","BLACK COUNTRY SKIP HIR","160.00","Windsor - CIN SWU S17","7394","Equipment - Purchase","24/09/2015"
"Wolverhampton City Council","http://opendatacommunities.org/id/metropolitan-district-council/wolverhampton","WEST COAST TRAINS","48.25","Graiseley - CIN SWU S17","4112","Public Transport","24/09/2015"
"Wolverhampton City Council","http://opendatacommunities.org/id/metropolitan-district-council/wolverhampton","BLACK COUNTRY SKIP HIR","144.17","Graiseley - CIN SWU S17","7394","Equipment - Purchase","24/09/2015"
"Wolverhampton City Council","http://opendatacommunities.org/id/metropolitan-district-council/wolverhampton","Amazon UK Marketplace","27.54","Towers Outdoor Education Centre","5942","Fixtures and Fittings - Purchases","24/09/2015"
"Wolverhampton City Council","http://opendatacommunities.org/id/metropolitan-district-council/wolverhampton","ARGOS RETAIL GROUP","163.27","Alfred Squire - CIN SWU S17","5310","Furniture","24/09/2015"
"Wolverhampton City Council","http://opendatacommunities.org/id/metropolitan-district-council/wolverhampton","OFFICE DEPOT","34.95","Aldersley Leisure Village","5111","Stationery","24/09/2015"
"Wolverhampton City Council","http://opendatacommunities.org/id/metropolitan-district-council/wolverhampton","PURE360","268.80","Civic Halls Non Direct Management A/C","7372","Marketing \ Non-staff advertising","24/09/2015"
"Wolverhampton City Council","http://opendatacommunities.org/id/metropolitan-district-council/wolverhampton","COMBINED COURT","6015.00","Head of Service - CINCP","9222","Services - Fees and Charges","24/09/2015"
"Wolverhampton City Council","http://opendatacommunities.org/id/metropolitan-district-council/wolverhampton","SCREWFIX","14.98","Technician","5211","Equipment - Purchase","24/09/2015"
"Wolverhampton City Council","http://opendatacommunities.org/id/metropolitan-district-council/wolverhampton","FTPE WEBTIS 1","31.70","LAC Transitions Team","4112","Public Transport","24/09/2015"
"Wolverhampton City Council","http://opendatacommunities.org/id/metropolitan-district-council/wolverhampton","TFM FARM & COUNTRY SUP","240.59","Northicote Farm","5399","Equipment - Purchase","24/09/2015"
"Wolverhampton City Council","http://opendatacommunities.org/id/metropolitan-district-council/wolverhampton","Virgintrains.co.uk","5.40","Children & Young People Support Costs","4112","Public Transport","24/09/2015"
"Wolverhampton City Council","http://opendatacommunities.org/id/metropolitan-district-council/wolverhampton","OFFICE DEPOT","92.14","Independent Living Service","5111","Stationery","24/09/2015"
"Wolverhampton City Council","http://opendatacommunities.org/id/metropolitan-district-council/wolverhampton","DULUX DECORATOR CENTRE","95.73","Technical Material","5198","Materials","24/09/2015"
"Wolverhampton City Council","http://opendatacommunities.org/id/metropolitan-district-council/wolverhampton","TIMPSON LTD","20.00","College of Further Education","7251","Fixtures and Fittings - R&M","24/09/2015"
"Wolverhampton City Council","http://opendatacommunities.org/id/metropolitan-district-council/wolverhampton","KONICA MINOLTA BUSINES","137.11","Music Support Team","7399","Equipment - R & M","24/09/2015"
"Wolverhampton City Council","http://opendatacommunities.org/id/metropolitan-district-council/wolverhampton","Amazon UK Marketplace","65.99","Foundation Studies","5942","Books","24/09/2015"
"Wolverhampton City Council","http://opendatacommunities.org/id/metropolitan-district-council/wolverhampton","KONICA MINOLTA BUSINES","168.21","Music Support Team","7399","Equipment - R & M","24/09/2015"
"Wolverhampton City Council","http://opendatacommunities.org/id/metropolitan-district-council/wolverhampton","HILTON","460.00","Strategic Asset Management - General","3504","Subsistence","24/09/2015"
"Wolverhampton City Council","http://opendatacommunities.org/id/metropolitan-district-council/wolverhampton","CENTURY ELECTRICAL WHO","35.00","Caretakers Community Centre","5065","R&M - Departmental planned (external)","24/09/2015"
"Wolverhampton City Council","http://opendatacommunities.org/id/metropolitan-district-council/wolverhampton","WICKES","129.87","Northicote Farm","5211","Materials","24/09/2015"
"Wolverhampton City Council","http://opendatacommunities.org/id/metropolitan-district-council/wolverhampton","HILTON","460.00","Strategic Asset Management - General","3504","Subsistence","24/09/2015"
"Wolverhampton City Council","http://opendatacommunities.org/id/metropolitan-district-council/wolverhampton","COMBINED COURT","155.00","Rents Management","9222","Services - Fees and Charges","24/09/2015"
"Wolverhampton City Council","http://opendatacommunities.org/id/metropolitan-district-council/wolverhampton","WEST COAST TRAINS","183.00","Welfare Rights","4112","Public Transport","24/09/2015"
"Wolverhampton City Council","http://opendatacommunities.org/id/metropolitan-district-council/wolverhampton","LONDON MIDLAND TIC","22.00","MAST 2 - Bilston","4112","Grant Payments","24/09/2015"
"Wolverhampton City Council","http://opendatacommunities.org/id/metropolitan-district-council/wolverhampton","EE & T-MOBILE","141.13","Civic Halls Non Direct Management A/C","4814","Comms - Telephone Call charges","24/09/2015"
"Wolverhampton City Council","http://opendatacommunities.org/id/metropolitan-district-council/wolverhampton","CENTURY ELECTRICAL WHO","15.66","Street Lighting Maintenance","5065","Equipment - R & M","24/09/2015"
"Wolverhampton City Council","http://opendatacommunities.org/id/metropolitan-district-council/wolverhampton","OFFICE DEPOT","145.97","Planning","5111","Stationery","24/09/2015"
"Wolverhampton City Council","http://opendatacommunities.org/id/metropolitan-district-council/wolverhampton","CARVER/WOLVERHAMPTON/L","34.65","Wholesale Market Facilities Management","5211","Cleaning Supplies and Materials","24/09/2015"
"Wolverhampton City Council","http://opendatacommunities.org/id/metropolitan-district-council/wolverhampton","CARVER/WOLVERHAMPTON/L","21.16","Pest Control","5211","Materials","24/09/2015"
"Wolverhampton City Council","http://opendatacommunities.org/id/metropolitan-district-council/wolverhampton","COMBINED COURT","1090.00","Rents Management","9222","Services - Fees and Charges","24/09/2015"
"Wolverhampton City Council","http://opendatacommunities.org/id/metropolitan-district-council/wolverhampton","FTPE WEBTIS 1","-31.70","LAC Transitions Team","4112","Public Transport","23/09/2015"
"Wolverhampton City Council","http://opendatacommunities.org/id/metropolitan-district-council/wolverhampton","TRAINLINE","8.41","SEN Early Years Team","4112","Public Transport","23/09/2015"
"Wolverhampton City Council","http://opendatacommunities.org/id/metropolitan-district-council/wolverhampton","COMBINED COURT","60.00","Legal Services","9222","Services - Fees and Charges","23/09/2015"
"Wolverhampton City Council","http://opendatacommunities.org/id/metropolitan-district-council/wolverhampton","ASDA HOME SHOPPING","0.16","Ernest Bold Court","5411","Provisions (Not for resale)","23/09/2015"
"Wolverhampton City Council","http://opendatacommunities.org/id/metropolitan-district-council/wolverhampton","COMBINED COURT","50.00","Legal Services","9222","Services - Fees and Charges","23/09/2015"
"Wolverhampton City Council","http://opendatacommunities.org/id/metropolitan-district-council/wolverhampton","TESCO STORE 3414","30.00","School Crossing Patrol","5411","Equipment - Purchase","23/09/2015"
"Wolverhampton City Council","http://opendatacommunities.org/id/metropolitan-district-council/wolverhampton","TVLICENSING.CO.UK","145.50","LAC Transitions Team","7392","Services - Consultants","23/09/2015"
"Wolverhampton City Council","http://opendatacommunities.org/id/metropolitan-district-council/wolverhampton","TRAINLINE","16.07","Childrens Centres & Early Years","4112","Public Transport","23/09/2015"
"Wolverhampton City Council","http://opendatacommunities.org/id/metropolitan-district-council/wolverhampton","PUBLICITY & DISPLAY LT","296.40","Outdoor Events Admin","2741","Stationery","23/09/2015"
"Wolverhampton City Council","http://opendatacommunities.org/id/metropolitan-district-council/wolverhampton","WWW.IDHDIRECT.CO.UK","400.00","Creative Studies Delivery Area","5943","Equipment - Purchase","23/09/2015"
"Wolverhampton City Council","http://opendatacommunities.org/id/metropolitan-district-council/wolverhampton","SAINSBURYS (2340)","27.80","Civic Centre Catering","5411","Provisions (Not for resale)","23/09/2015"
"Wolverhampton City Council","http://opendatacommunities.org/id/metropolitan-district-council/wolverhampton","ASDA SUPERSTORE","27.32","Swan Bank","5411","Provisions (Not for resale)","23/09/2015"
"Wolverhampton City Council","http://opendatacommunities.org/id/metropolitan-district-council/wolverhampton","SAIN ST MARK'S","50.00","Duke Street Bungalows","6011","Provisions (Not for resale)","23/09/2015"
"Wolverhampton City Council","http://opendatacommunities.org/id/metropolitan-district-council/wolverhampton","ARGOS RETAIL GROUP","12.46","Play General","5310","Equipment - Purchase","23/09/2015"
"Wolverhampton City Council","http://opendatacommunities.org/id/metropolitan-district-council/wolverhampton","FACEBOOK 4KM7P72B92","600.05","Communications & Marketing - General","7311","Marketing \ Non-staff advertising","23/09/2015"
"Wolverhampton City Council","http://opendatacommunities.org/id/metropolitan-district-council/wolverhampton","ARGOS RETAIL GROUP","208.32","LAC Transitions Team","5310","Equipment - Purchase","23/09/2015"
"Wolverhampton City Council","http://opendatacommunities.org/id/metropolitan-district-council/wolverhampton","TRAINLINE","145.04","Looked After Team 1","4112","Public Transport","23/09/2015"
"Wolverhampton City Council","http://opendatacommunities.org/id/metropolitan-district-council/wolverhampton","OFFICE DEPOT","22.85","Mental Health Assessment & Care Mgmt","5111","Stationery","23/09/2015"
"Wolverhampton City Council","http://opendatacommunities.org/id/metropolitan-district-council/wolverhampton","WWW.BASI.ORG","75.00","Towers Outdoor Education Centre","8699","Equipment - Purchase","23/09/2015"
"Wolverhampton City Council","http://opendatacommunities.org/id/metropolitan-district-council/wolverhampton","OFFICE DEPOT","-32.48","Fostering Team & Allowances","5111","Stationery","23/09/2015"
"Wolverhampton City Council","http://opendatacommunities.org/id/metropolitan-district-council/wolverhampton","SCREWFIX DIRECT","10.65","Parkfields Centre","5211","Equipment - Purchase","23/09/2015"
"Wolverhampton City Council","http://opendatacommunities.org/id/metropolitan-district-council/wolverhampton","SAINSBURYS 2040","48.70","Duke Street Bungalows","5411","Provisions (Not for resale)","23/09/2015"
"Wolverhampton City Council","http://opendatacommunities.org/id/metropolitan-district-council/wolverhampton","123 REG R/T","8.38","Art Gallery","5968","Subscriptions","23/09/2015"
"Wolverhampton City Council","http://opendatacommunities.org/id/metropolitan-district-council/wolverhampton","PREMIER INN","97.50","Fostering Team & Allowances","3811","Services - Supplies & Services to users","23/09/2015"
"Wolverhampton City Council","http://opendatacommunities.org/id/metropolitan-district-council/wolverhampton","PAYPAL  SPORTINGTOU","42.95","LAC Admin Team","5661","Clothing / Uniforms","23/09/2015"
"Wolverhampton City Council","http://opendatacommunities.org/id/metropolitan-district-council/wolverhampton","ASDA HOME SHOPPING","63.69","Ernest Bold Court","5411","Provisions (Not for resale)","23/09/2015"
"Wolverhampton City Council","http://opendatacommunities.org/id/metropolitan-district-council/wolverhampton","DUNELM (SOFT FURNISHIN","17.89","College of Further Education","5714","Equipment - Purchase","23/09/2015"
"Wolverhampton City Council","http://opendatacommunities.org/id/metropolitan-district-council/wolverhampton","TESCO STORES 5194","234.66","Towers Outdoor Education Centre","5411","Provisions (Not for resale)","23/09/2015"
"Wolverhampton City Council","http://opendatacommunities.org/id/metropolitan-district-council/wolverhampton","TRAVELODGE","67.00","Looked After Team 1","3615","Services - Supplies & Services to users","23/09/2015"
"Wolverhampton City Council","http://opendatacommunities.org/id/metropolitan-district-council/wolverhampton","OFFICE DEPOT","130.50","The Maltings","5111","Stationery","23/09/2015"
"Wolverhampton City Council","http://opendatacommunities.org/id/metropolitan-district-council/wolverhampton","CORAM ACADEMY LTD","23.95","Adoption and Residence Team & Allowances","8398","Books","23/09/2015"
"Wolverhampton City Council","http://opendatacommunities.org/id/metropolitan-district-council/wolverhampton","OFFICE DEPOT","7.99","Macmillan Welfare Rights","5111","Computing - Purchase of Hardware","23/09/2015"
"Wolverhampton City Council","http://opendatacommunities.org/id/metropolitan-district-council/wolverhampton","TRAINLINE","22.69","Looked After Team 1","4112","Public Transport","22/09/2015"
"Wolverhampton City Council","http://opendatacommunities.org/id/metropolitan-district-council/wolverhampton","TESCO PFS 3374","3.50","Duke Street Bungalows","5541","Provisions (Not for resale)","22/09/2015"
"Wolverhampton City Council","http://opendatacommunities.org/id/metropolitan-district-council/wolverhampton","WP-NAACE","100.00","Learning Technologies","8398","Computing - Purchase of Software","22/09/2015"
"Wolverhampton City Council","http://opendatacommunities.org/id/metropolitan-district-council/wolverhampton","WATERSTONES","100.00","Environmental Health - Pub Prot - Gen","5942","Marketing \ Non-staff advertising","22/09/2015"
"Wolverhampton City Council","http://opendatacommunities.org/id/metropolitan-district-council/wolverhampton","ARGOS LTD","56.98","Education Catering - General Overheads","5310","Equipment - Purchase","22/09/2015"
"Wolverhampton City Council","http://opendatacommunities.org/id/metropolitan-district-council/wolverhampton","WWW.PUBLICPOLICYEXCHAN","295.00","Central Training","7399","Training Expenses","22/09/2015"
"Wolverhampton City Council","http://opendatacommunities.org/id/metropolitan-district-council/wolverhampton","LIVERPOOL CITY COUNCIL","10.80","LAC Transitions Team","9399","Services - Fees and Charges","22/09/2015"
"Wolverhampton City Council","http://opendatacommunities.org/id/metropolitan-district-council/wolverhampton","DULUX DECORATOR CENTRE","13.65","Art Gallery","5198","Materials","22/09/2015"
"Wolverhampton City Council","http://opendatacommunities.org/id/metropolitan-district-council/wolverhampton","INSTARMAC GROUP PLC","73.68","Street Cleansing Overheads","5039","Materials","22/09/2015"
"Wolverhampton City Council","http://opendatacommunities.org/id/metropolitan-district-council/wolverhampton","PUPPETS BY POST","32.50","Foundation Studies","5945","Equipment - Purchase","22/09/2015"
"Wolverhampton City Council","http://opendatacommunities.org/id/metropolitan-district-council/wolverhampton","BT BILL PAYMENT 1","112.36","Civic Halls Non Direct Management A/C","4812","Comms - Mobile Telephones","22/09/2015"
"Wolverhampton City Council","http://opendatacommunities.org/id/metropolitan-district-council/wolverhampton","TRAINLINE","22.69","Looked After Team 1","4112","Public Transport","22/09/2015"
"Wolverhampton City Council","http://opendatacommunities.org/id/metropolitan-district-council/wolverhampton","UTILITY WAREHOUSE","50.28","HRA General","4900","Electricity","22/09/2015"
"Wolverhampton City Council","http://opendatacommunities.org/id/metropolitan-district-council/wolverhampton","WIX.COM","46.57","Technical Support","5734","Computing - Purchase of Software","22/09/2015"
"Wolverhampton City Council","http://opendatacommunities.org/id/metropolitan-district-council/wolverhampton","ASDA HOME SHOPPING","234.82","Upper Pendeford Farm Childrens Home","5411","Provisions (Not for resale)","22/09/2015"
"Wolverhampton City Council","http://opendatacommunities.org/id/metropolitan-district-council/wolverhampton","TRAINLINE","73.13","Legal Services","4112","Public Transport","22/09/2015"
"Wolverhampton City Council","http://opendatacommunities.org/id/metropolitan-district-council/wolverhampton","BT PAY BY PHONE","151.12","Makers Dozen","4814","Comms - Telephone Call charges","22/09/2015"
"Wolverhampton City Council","http://opendatacommunities.org/id/metropolitan-district-council/wolverhampton","COOKSON PRECIOUS M","338.85","Creative Studies Delivery Area","5094","Materials","22/09/2015"
"Wolverhampton City Council","http://opendatacommunities.org/id/metropolitan-district-council/wolverhampton","REGISTRARS OFFICE","81.00","Head of Service - CINCP","8299","Services - Professional Fees","22/09/2015"
"Wolverhampton City Council","http://opendatacommunities.org/id/metropolitan-district-council/wolverhampton","SCREWFIX DIRECT","143.25","Parkfields Centre","5211","Equipment - Purchase","22/09/2015"
"Wolverhampton City Council","http://opendatacommunities.org/id/metropolitan-district-council/wolverhampton","ARGOS LTD","89.99","Education Catering - General Overheads","5310","Equipment - Purchase","22/09/2015"
"Wolverhampton City Council","http://opendatacommunities.org/id/metropolitan-district-council/wolverhampton","JAMES LISTER & SONS LT","108.75","Creative Studies Delivery Area","5085","Equipment - Purchase","22/09/2015"
"Wolverhampton City Council","http://opendatacommunities.org/id/metropolitan-district-council/wolverhampton","ASDA HOME SHOPPING","1.06","Upper Pendeford Farm Childrens Home","5411","Provisions (Not for resale)","22/09/2015"
"Wolverhampton City Council","http://opendatacommunities.org/id/metropolitan-district-council/wolverhampton","TOOLSTATION LTD","39.80","Caretakers Community Centre","5251","R&M - Departmental planned (external)","21/09/2015"
"Wolverhampton City Council","http://opendatacommunities.org/id/metropolitan-district-council/wolverhampton","WIX.COM","46.57","Technical Support","5734","Computing - Purchase of Software","21/09/2015"
"Wolverhampton City Council","http://opendatacommunities.org/id/metropolitan-district-council/wolverhampton","TESCO DELIVERY SAVER2","2.50","Towers Outdoor Education Centre","5968","Provisions (Not for resale)","21/09/2015"
"Wolverhampton City Council","http://opendatacommunities.org/id/metropolitan-district-council/wolverhampton","THE CONSORTIUM/WMS","123.40","Education And Access","5968","Materials","21/09/2015"
"Wolverhampton City Council","http://opendatacommunities.org/id/metropolitan-district-council/wolverhampton","ROYAL MAIL  0845606040","1.54","Mayoral Expenses","9402","Hospitality","21/09/2015"
"Wolverhampton City Council","http://opendatacommunities.org/id/metropolitan-district-council/wolverhampton","WM MORRISONS","13.07","Upper Pendeford Farm Childrens Home","5411","Provisions (Not for resale)","21/09/2015"
"Wolverhampton City Council","http://opendatacommunities.org/id/metropolitan-district-council/wolverhampton","OFFICE DEPOT","49.49","Community Access & Leisure - North","5111","Stationery","21/09/2015"
"Wolverhampton City Council","http://opendatacommunities.org/id/metropolitan-district-council/wolverhampton","ROYAL MAIL  0845606040","1.54","Mayoral Expenses","9402","Hospitality","21/09/2015"
"Wolverhampton City Council","http://opendatacommunities.org/id/metropolitan-district-council/wolverhampton","OFFICE DEPOT","2.31","MAST 4 - Warstones","5111","Stationery","21/09/2015"
"Wolverhampton City Council","http://opendatacommunities.org/id/metropolitan-district-council/wolverhampton","Amazon Prime","79.00","LAC Admin Team","5968","Subscriptions","21/09/2015"
"Wolverhampton City Council","http://opendatacommunities.org/id/metropolitan-district-council/wolverhampton","AUTOTIME SOLUTIONS","53.50","Ground Maintenance East","5943","Stationery","21/09/2015"
"Wolverhampton City Council","http://opendatacommunities.org/id/metropolitan-district-council/wolverhampton","PRK MAILBOX B'HAM UPT","4.17","LAC Transitions Team","7523","Car Allowances","21/09/2015"
"Wolverhampton City Council","http://opendatacommunities.org/id/metropolitan-district-council/wolverhampton","Amazon UK Marketplace","131.58","College of Further Education","5942","Computing - Consumables","21/09/2015"
"Wolverhampton City Council","http://opendatacommunities.org/id/metropolitan-district-council/wolverhampton","WM MORRISONS","16.45","Learning Disabilities Management","5411","Provisions (Not for resale)","21/09/2015"
"Wolverhampton City Council","http://opendatacommunities.org/id/metropolitan-district-council/wolverhampton","SAINSBURYS 2040","56.00","Duke Street Bungalows","5411","Cleaning Supplies and Materials","21/09/2015"
"Wolverhampton City Council","http://opendatacommunities.org/id/metropolitan-district-council/wolverhampton","RYMAN","11.30","LAC Transitions Team","5943","Stationery","21/09/2015"
"Wolverhampton City Council","http://opendatacommunities.org/id/metropolitan-district-council/wolverhampton","POUNDLAND LTD 1463","2.50","LAC Transitions Team","5310","Equipment - Purchase","21/09/2015"
"Wolverhampton City Council","http://opendatacommunities.org/id/metropolitan-district-council/wolverhampton","Amazon EU","11.17","Bert Williams Leisure Centre","5969","Equipment - Purchase","21/09/2015"
"Wolverhampton City Council","http://opendatacommunities.org/id/metropolitan-district-council/wolverhampton","TVLICENSING.CO.UK","121.25","Aldersley Leisure Village","7392","Services - General Licences","21/09/2015"
"Wolverhampton City Council","http://opendatacommunities.org/id/metropolitan-district-council/wolverhampton","ROYAL MAIL  0845606040","1.54","Mayoral Expenses","9402","Hospitality","21/09/2015"
"Wolverhampton City Council","http://opendatacommunities.org/id/metropolitan-district-council/wolverhampton","Amazon EU","26.20","Children's Village Children Centre","5969","Equipment - Purchase","21/09/2015"
"Wolverhampton City Council","http://opendatacommunities.org/id/metropolitan-district-council/wolverhampton","WWW.WALLACECAMERON.COM","77.49","Towers Outdoor Education Centre","5047","Fixtures and Fittings - Purchases","21/09/2015"
"Wolverhampton City Council","http://opendatacommunities.org/id/metropolitan-district-council/wolverhampton","BAKER ROSS","177.93","Education And Access","5970","Materials","21/09/2015"
"Wolverhampton City Council","http://opendatacommunities.org/id/metropolitan-district-council/wolverhampton","LIDL UK","16.66","Northicote Farm","5411","Provisions (Not for resale)","21/09/2015"
"Wolverhampton City Council","http://opendatacommunities.org/id/metropolitan-district-council/wolverhampton","WEST COAST TRAINS","36.20","College of Further Education","4112","Public Transport","21/09/2015"
"Wolverhampton City Council","http://opendatacommunities.org/id/metropolitan-district-council/wolverhampton","NETWORK WEST MIDLANDS","33.00","MAST 2 - Bilston","9399","Grant Payments","21/09/2015"
"Wolverhampton City Council","http://opendatacommunities.org/id/metropolitan-district-council/wolverhampton","ASDA SUPERSTORE","4.97","Swan Bank","5411","Provisions (Not for resale)","21/09/2015"
"Wolverhampton City Council","http://opendatacommunities.org/id/metropolitan-district-council/wolverhampton","WIX.COM","46.57","Technical Support","5734","Computing - Purchase of Software","21/09/2015"
"Wolverhampton City Council","http://opendatacommunities.org/id/metropolitan-district-council/wolverhampton","POST OFFICE COUNTER","6.45","Duke Street Bungalows","9402","Comms - Postage","21/09/2015"
"Wolverhampton City Council","http://opendatacommunities.org/id/metropolitan-district-council/wolverhampton","ASDA HOME SHOPPING","-0.08","Ernest Bold Court","5411","Provisions (Not for resale)","21/09/2015"
"Wolverhampton City Council","http://opendatacommunities.org/id/metropolitan-district-council/wolverhampton","ALL SORTS OFFICE SUPPL","139.14","Civic Centre","5111","Stationery","21/09/2015"
"Wolverhampton City Council","http://opendatacommunities.org/id/metropolitan-district-council/wolverhampton","HOMEBASE LTD 103","11.87","Play General","5211","Materials","21/09/2015"
"Wolverhampton City Council","http://opendatacommunities.org/id/metropolitan-district-council/wolverhampton","ARGOS RETAIL GROUP","43.93","Ernest Bold Court","5310","Equipment - Purchase","21/09/2015"
"Wolverhampton City Council","http://opendatacommunities.org/id/metropolitan-district-council/wolverhampton","ROYAL MAIL  0845606040","1.54","Mayoral Expenses","9402","Hospitality","21/09/2015"
"Wolverhampton City Council","http://opendatacommunities.org/id/metropolitan-district-council/wolverhampton","ASDA HOME SHOPPING","68.91","Ernest Bold Court","5411","Provisions (Not for resale)","21/09/2015"
"Wolverhampton City Council","http://opendatacommunities.org/id/metropolitan-district-council/wolverhampton","TRAINLINE","118.12","Adoption and Residence Team & Allowances","4112","Public Transport","21/09/2015"
"Wolverhampton City Council","http://opendatacommunities.org/id/metropolitan-district-council/wolverhampton","OFFICE DEPOT","21.15","MAST 4 - Warstones","5111","Stationery","18/09/2015"
"Wolverhampton City Council","http://opendatacommunities.org/id/metropolitan-district-council/wolverhampton","EASYLINK UK","187.25","Telecare","5969","Equipment - Purchase","18/09/2015"
"Wolverhampton City Council","http://opendatacommunities.org/id/metropolitan-district-council/wolverhampton","OFFICE DEPOT","91.85","Fleet Management","5111","Stationery","18/09/2015"
"Wolverhampton City Council","http://opendatacommunities.org/id/metropolitan-district-council/wolverhampton","SHELTER","171.00","LAC Transitions Team","8398","Training Expenses","18/09/2015"
"Wolverhampton City Council","http://opendatacommunities.org/id/metropolitan-district-council/wolverhampton","BILSTON CARPETS","150.00","Bilston 2 - CIN SWU S17","5713","Fixtures and Fittings - Purchases","18/09/2015"
"Wolverhampton City Council","http://opendatacommunities.org/id/metropolitan-district-council/wolverhampton","TOOLSTATION LTD","39.80","Caretakers Community Centre","5251","R&M - Departmental planned (external)","18/09/2015"
"Wolverhampton City Council","http://opendatacommunities.org/id/metropolitan-district-council/wolverhampton","TESCO STORES 6727","9.20","Restorative Justice","5411","Hospitality","18/09/2015"
"Wolverhampton City Council","http://opendatacommunities.org/id/metropolitan-district-council/wolverhampton","TRAINLINE","113.32","Adoption and Residence Team & Allowances","4112","Public Transport","18/09/2015"
"Wolverhampton City Council","http://opendatacommunities.org/id/metropolitan-district-council/wolverhampton","MUSIC WEEK","249.00","Civic Halls Non Direct Management A/C","2741","Subscriptions","18/09/2015"
"Wolverhampton City Council","http://opendatacommunities.org/id/metropolitan-district-council/wolverhampton","KINGSPAN ENVIRONMENT L","1166.67","Towers Outdoor Education Centre","5085","Equipment - Purchase","18/09/2015"
"Wolverhampton City Council","http://opendatacommunities.org/id/metropolitan-district-council/wolverhampton","MAPLIN WOLVERHAMPT WV1","2.50","Technician","5732","Equipment - Purchase","18/09/2015"
"Wolverhampton City Council","http://opendatacommunities.org/id/metropolitan-district-council/wolverhampton","PO LOW HILL 1592","150.00","46a, Second Avenue, Low Hill","6011","Services - Bank Charges","18/09/2015"
"Wolverhampton City Council","http://opendatacommunities.org/id/metropolitan-district-council/wolverhampton","TRAINLINE","22.08","Adoption and Residence Team & Allowances","4112","Public Transport","18/09/2015"
"Wolverhampton City Council","http://opendatacommunities.org/id/metropolitan-district-council/wolverhampton","Amazon UK Marketplace","11.99","Corporate Procurement Unit","5942","Stationery","18/09/2015"
"Wolverhampton City Council","http://opendatacommunities.org/id/metropolitan-district-council/wolverhampton","POST OFFICE COUNTER","1.73","CIN - Dove CC - Area 6","9402","Comms - Postage","18/09/2015"
"Wolverhampton City Council","http://opendatacommunities.org/id/metropolitan-district-council/wolverhampton","WM MORRISONS","15.12","CIN - Priory Green MAST - Area 6","5411","Comms - Postage","18/09/2015"
"Wolverhampton City Council","http://opendatacommunities.org/id/metropolitan-district-council/wolverhampton","NETWORK WEST MIDLANDS","29.25","Windsor - CIN SWU S17","9399","Client Transport","18/09/2015"
"Wolverhampton City Council","http://opendatacommunities.org/id/metropolitan-district-council/wolverhampton","JAMES LISTER & SON","22.85","Employment Service - Old Tree Nursery","8911","Services - Professional Fees","18/09/2015"
"Wolverhampton City Council","http://opendatacommunities.org/id/metropolitan-district-council/wolverhampton","TOOLSTATION LTD","19.90","Caretakers Community Centre","5251","R&M - Departmental planned (external)","18/09/2015"
"Wolverhampton City Council","http://opendatacommunities.org/id/metropolitan-district-council/wolverhampton","BURTECH CYF","25.74","Towers Outdoor Education Centre","7538","Vehicle Maintenance - Repairs","18/09/2015"
"Wolverhampton City Council","http://opendatacommunities.org/id/metropolitan-district-council/wolverhampton","NOTEMACHINE","250.00","Valley Park - CIN SWU S17","6011","Financial Assistance In Exceptional Circ","18/09/2015"
"Wolverhampton City Council","http://opendatacommunities.org/id/metropolitan-district-council/wolverhampton","HM PASSPORT OFFICE","98.00","Looked After Team 1","9399","Services - Fees and Charges","18/09/2015"
"Wolverhampton City Council","http://opendatacommunities.org/id/metropolitan-district-council/wolverhampton","INSTIT OF OCCPTNL SAFE","97.00","Work Related Studies","8699","Subscriptions","18/09/2015"
"Wolverhampton City Council","http://opendatacommunities.org/id/metropolitan-district-council/wolverhampton","CUMMINGS BROTHERS LOCK","25.00","Wholesale Market Facilities Management","7399","R&M - Departmental planned (external)","18/09/2015"
"Wolverhampton City Council","http://opendatacommunities.org/id/metropolitan-district-council/wolverhampton","ASDA SUPERSTORE","8.60","Ernest Bold Court","5411","Provisions (Not for resale)","18/09/2015"
"Wolverhampton City Council","http://opendatacommunities.org/id/metropolitan-district-council/wolverhampton","Amazon UK Marketplace","15.79","Global Budgets","5942","Books","18/09/2015"
"Wolverhampton City Council","http://opendatacommunities.org/id/metropolitan-district-council/wolverhampton","CT WOLVERHAMPTON","35.42","Berries - CIN SWU S17","8398","Furniture","18/09/2015"
"Wolverhampton City Council","http://opendatacommunities.org/id/metropolitan-district-council/wolverhampton","NOTEMACHINE","250.00","Valley Park - CIN SWU S17","6011","Financial Assistance In Exceptional Circ","18/09/2015"
"Wolverhampton City Council","http://opendatacommunities.org/id/metropolitan-district-council/wolverhampton","TRAINLINE","278.66","SEN Special Education Admin","4112","Public Transport","18/09/2015"
"Wolverhampton City Council","http://opendatacommunities.org/id/metropolitan-district-council/wolverhampton","ITUNES.COM/BILL","0.79","Civic Halls Non Direct Management A/C","5735","Computing - Purchase of Software","18/09/2015"
"Wolverhampton City Council","http://opendatacommunities.org/id/metropolitan-district-council/wolverhampton","BILSTON CARPETS","120.00","Bilston 2 - CIN SWU S17","5713","Fixtures and Fittings - Purchases","18/09/2015"
"Wolverhampton City Council","http://opendatacommunities.org/id/metropolitan-district-council/wolverhampton","PRESTWOOD PETZONE","12.47","Children & Family Contact Services","5995","Equipment - Purchase","18/09/2015"
"Wolverhampton City Council","http://opendatacommunities.org/id/metropolitan-district-council/wolverhampton","Amazon UK Marketplace","13.35","Employment Service - Old Tree Nursery","5942","Books","18/09/2015"
"Wolverhampton City Council","http://opendatacommunities.org/id/metropolitan-district-council/wolverhampton","CHASE HOTEL H","133.98","College of Further Education","7011","Services - Supplies & Services to users","18/09/2015"
"Wolverhampton City Council","http://opendatacommunities.org/id/metropolitan-district-council/wolverhampton","Amazon UK Marketplace","7.27","Aldersley Leisure Village","5942","Equipment - Purchase","17/09/2015"
"Wolverhampton City Council","http://opendatacommunities.org/id/metropolitan-district-council/wolverhampton","REGISTRARS OFFICE","-29.00","Head of Service - CINCP","8299","Services - Professional Fees","17/09/2015"
"Wolverhampton City Council","http://opendatacommunities.org/id/metropolitan-district-council/wolverhampton","INSPECTLET.COM","52.63","City Direct","5734","Computing - Purchase of Software","17/09/2015"
"Wolverhampton City Council","http://opendatacommunities.org/id/metropolitan-district-council/wolverhampton","ROYAL BK OF SCOTLAND","40.00","Community Enablement","6011","Educ Trips, Holidays, Outings, Activity","17/09/2015"
"Wolverhampton City Council","http://opendatacommunities.org/id/metropolitan-district-council/wolverhampton","OFFICE DEPOT","554.39","Business Manager - Place","5111","Stationery","17/09/2015"
"Wolverhampton City Council","http://opendatacommunities.org/id/metropolitan-district-council/wolverhampton","OFFICE DEPOT","10.49","Towers Outdoor Education Centre","5111","Equipment - Purchase","17/09/2015"
"Wolverhampton City Council","http://opendatacommunities.org/id/metropolitan-district-council/wolverhampton","POST OFFICE COUNTER","7.25","Bilston Museum","9402","Comms - Postage","17/09/2015"
"Wolverhampton City Council","http://opendatacommunities.org/id/metropolitan-district-council/wolverhampton","WEST COAST TRAINS","56.70","Graiseley - CIN SWU S17","4112","Public Transport","17/09/2015"
"Wolverhampton City Council","http://opendatacommunities.org/id/metropolitan-district-council/wolverhampton","ROYAL BK OF SCOTLAND","100.00","Duke Street Bungalows","6011","Client Transport","17/09/2015"
"Wolverhampton City Council","http://opendatacommunities.org/id/metropolitan-district-council/wolverhampton","REGISTRARS OFFICE","29.00","Head of Service - CINCP","8299","Services - Professional Fees","17/09/2015"
"Wolverhampton City Council","http://opendatacommunities.org/id/metropolitan-district-council/wolverhampton","GEOGRAPHERS A-Z MAP CO","18.00","Independent Living Service","5942","Books","17/09/2015"
"Wolverhampton City Council","http://opendatacommunities.org/id/metropolitan-district-council/wolverhampton","Amazon EU","24.25","Parks - East Area Management","5969","Equipment - Purchase","17/09/2015"
"Wolverhampton City Council","http://opendatacommunities.org/id/metropolitan-district-council/wolverhampton","ARGOS RETAIL GROUP","125.40","LAC Transitions Team","5310","Equipment - Purchase","17/09/2015"
"Wolverhampton City Council","http://opendatacommunities.org/id/metropolitan-district-council/wolverhampton","Amazon EU","9.71","Employment Service - Old Tree Nursery","5969","Equipment - Purchase","17/09/2015"
"Wolverhampton City Council","http://opendatacommunities.org/id/metropolitan-district-council/wolverhampton","Amazon UK Marketplace","133.17","LAC Transitions Team","5942","Client Allowances","17/09/2015"
"Wolverhampton City Council","http://opendatacommunities.org/id/metropolitan-district-council/wolverhampton","DIGITECKLTD","112.49","Learning Technologies","5533","Vehicle Maintenance - Repairs","17/09/2015"
"Wolverhampton City Council","http://opendatacommunities.org/id/metropolitan-district-council/wolverhampton","WILKO RETAIL LIMIT","4.58","Service Wide","5722","Equipment - Purchase","17/09/2015"
"Wolverhampton City Council","http://opendatacommunities.org/id/metropolitan-district-council/wolverhampton","NETWORK WEST MIDLANDS","51.50","Graiseley - CIN SWU S17","9399","Client Transport","17/09/2015"
"Wolverhampton City Council","http://opendatacommunities.org/id/metropolitan-district-council/wolverhampton","OFFICE DEPOT","1.92","Business Manager - Place","5111","Stationery","17/09/2015"
"Wolverhampton City Council","http://opendatacommunities.org/id/metropolitan-district-council/wolverhampton","Amazon Svcs Europe,SAR","7.49","Aldersley Leisure Village","5942","Equipment - Purchase","17/09/2015"
"Wolverhampton City Council","http://opendatacommunities.org/id/metropolitan-district-council/wolverhampton","LOYD MORR WILLENHALL","250.00","Priory Green - CIN SWU S17","6011","Financial Assistance In Exceptional Circ","17/09/2015"
"Wolverhampton City Council","http://opendatacommunities.org/id/metropolitan-district-council/wolverhampton","TOOLSTATION LTD","57.72","Assessment Team (East)","5251","Equipment - Purchase","17/09/2015"
"Wolverhampton City Council","http://opendatacommunities.org/id/metropolitan-district-council/wolverhampton","FACEBOOK VTCHQ7NA92","600.05","Communications & Marketing - General","7311","Marketing \ Non-staff advertising","17/09/2015"
"Wolverhampton City Council","http://opendatacommunities.org/id/metropolitan-district-council/wolverhampton","Amazon Prime","65.83","Safeguarding Children","5968","Subscriptions","17/09/2015"
"Wolverhampton City Council","http://opendatacommunities.org/id/metropolitan-district-council/wolverhampton","CUMMINGS BROTHERS LOCK","40.00","Community Recreation","7399","Equipment - Purchase","17/09/2015"
"Wolverhampton City Council","http://opendatacommunities.org/id/metropolitan-district-council/wolverhampton","POST OFFICE COUNTER","108.00","Fostering Team & Allowances","9402","Comms - Postage","17/09/2015"
"Wolverhampton City Council","http://opendatacommunities.org/id/metropolitan-district-council/wolverhampton","OFFICE DEPOT","6.10","Business Manager - Place","5111","Stationery","17/09/2015"
"Wolverhampton City Council","http://opendatacommunities.org/id/metropolitan-district-council/wolverhampton","IKEA ONLINE","158.33","LAC Transitions Team","5719","Equipment - Purchase","17/09/2015"
"Wolverhampton City Council","http://opendatacommunities.org/id/metropolitan-district-council/wolverhampton","YMLP.COM","63.00","Art Gallery","7372","Computing - Purchase of Software","17/09/2015"
"Wolverhampton City Council","http://opendatacommunities.org/id/metropolitan-district-council/wolverhampton","TESCO STORES 5194","119.03","Towers Outdoor Education Centre","5411","Provisions (Not for resale)","17/09/2015"
"Wolverhampton City Council","http://opendatacommunities.org/id/metropolitan-district-council/wolverhampton","Amazon UK Marketplace","38.30","LAC Transitions Team","5942","Books","17/09/2015"
"Wolverhampton City Council","http://opendatacommunities.org/id/metropolitan-district-council/wolverhampton","OFFICE DEPOT","37.22","MAST 1 - Deansfield","5111","Stationery","17/09/2015"
"Wolverhampton City Council","http://opendatacommunities.org/id/metropolitan-district-council/wolverhampton","Virgintrains.co.uk","180.00","Fostering Team & Allowances","4112","Public Transport","17/09/2015"
"Wolverhampton City Council","http://opendatacommunities.org/id/metropolitan-district-council/wolverhampton","SPORTSDIRECT 383","20.82","LAC Transitions Team","5941","Equipment - Purchase","17/09/2015"
"Wolverhampton City Council","http://opendatacommunities.org/id/metropolitan-district-council/wolverhampton","TIMPSON LTD","20.00","College of Further Education","7251","Fixtures and Fittings - R&M","17/09/2015"
"Wolverhampton City Council","http://opendatacommunities.org/id/metropolitan-district-council/wolverhampton","KINGSPAN ENVIRONMENT L","1166.67","Towers Outdoor Education Centre","5085","Equipment - Purchase","17/09/2015"
"Wolverhampton City Council","http://opendatacommunities.org/id/metropolitan-district-council/wolverhampton","POST OFFICE COUNTER","234.00","Children's Village Children Centre","9402","Comms - Postage","17/09/2015"
"Wolverhampton City Council","http://opendatacommunities.org/id/metropolitan-district-council/wolverhampton","WICKES","61.20","Play General","5211","Materials","17/09/2015"
"Wolverhampton City Council","http://opendatacommunities.org/id/metropolitan-district-council/wolverhampton","CENTRO","10.00","Upper Pendeford Farm Childrens Home","9399","Services - Fees and Charges","17/09/2015"
"Wolverhampton City Council","http://opendatacommunities.org/id/metropolitan-district-council/wolverhampton","SMART UK","387.00","Civic Hall Administration Overhead Acct","7399","Equipment - Purchase","17/09/2015"
"Wolverhampton City Council","http://opendatacommunities.org/id/metropolitan-district-council/wolverhampton","AUDIENCE.UK.COM","600.00","Civic Halls Non Direct Management A/C","8699","Marketing \ Non-staff advertising","17/09/2015"
"Wolverhampton City Council","http://opendatacommunities.org/id/metropolitan-district-council/wolverhampton","WWW.BRUNELENGRAVING.CO","30.45","Towers Outdoor Education Centre","5999","Equipment - Purchase","17/09/2015"
"Wolverhampton City Council","http://opendatacommunities.org/id/metropolitan-district-council/wolverhampton","THE POST OFFICE","22.68","Graiseley - CIN SWU S17","9402","Comms - Postage","16/09/2015"
"Wolverhampton City Council","http://opendatacommunities.org/id/metropolitan-district-council/wolverhampton","TRAINLINE","50.34","City Direct","4112","Public Transport","16/09/2015"
"Wolverhampton City Council","http://opendatacommunities.org/id/metropolitan-district-council/wolverhampton","Cross Country","114.60","Mental Health Assessment & Care Mgmt","4112","Public Transport","16/09/2015"
"Wolverhampton City Council","http://opendatacommunities.org/id/metropolitan-district-council/wolverhampton","Amazon UK Marketplace","1.66","Aldersley Leisure Village","5942","Equipment - Purchase","16/09/2015"
"Wolverhampton City Council","http://opendatacommunities.org/id/metropolitan-district-council/wolverhampton","OFFICE DEPOT","83.81","LAC Transitions Team","5111","Stationery","16/09/2015"
"Wolverhampton City Council","http://opendatacommunities.org/id/metropolitan-district-council/wolverhampton","PC WORLD","100.82","Car Parks Operational Staff","5732","Equipment - Purchase","16/09/2015"
"Wolverhampton City Council","http://opendatacommunities.org/id/metropolitan-district-council/wolverhampton","TRAINLINE","43.55","SEN Special Education Admin","4112","Public Transport","16/09/2015"
"Wolverhampton City Council","http://opendatacommunities.org/id/metropolitan-district-council/wolverhampton","TESCO STORE 3414","10.00","School Crossing Patrol","5411","Equipment - Purchase","16/09/2015"
"Wolverhampton City Council","http://opendatacommunities.org/id/metropolitan-district-council/wolverhampton","TRAINLINE","254.49","Looked After Team 1","4112","Public Transport","16/09/2015"
"Wolverhampton City Council","http://opendatacommunities.org/id/metropolitan-district-council/wolverhampton","Amazon EU","8.28","Aldersley Leisure Village","5969","Equipment - Purchase","16/09/2015"
"Wolverhampton City Council","http://opendatacommunities.org/id/metropolitan-district-council/wolverhampton","123-REG.CO.UK","17.45","Technical Support","4816","Computing - Purchase of Software","16/09/2015"
"Wolverhampton City Council","http://opendatacommunities.org/id/metropolitan-district-council/wolverhampton","OURTYPE.COM","30.44","Sound Matters","7372","Computing - Purchase of Software","16/09/2015"
"Wolverhampton City Council","http://opendatacommunities.org/id/metropolitan-district-council/wolverhampton","Virgintrains.co.uk","-2.00","Private Sector Housing","4112","Public Transport","16/09/2015"
"Wolverhampton City Council","http://opendatacommunities.org/id/metropolitan-district-council/wolverhampton","ASDA HOME SHOPPING","0.19","Ernest Bold Court","5411","Provisions (Not for resale)","16/09/2015"
"Wolverhampton City Council","http://opendatacommunities.org/id/metropolitan-district-council/wolverhampton","POST OFFICE COUNTER","6.45","Looked After Team 1","9402","Comms - Postage","16/09/2015"
"Wolverhampton City Council","http://opendatacommunities.org/id/metropolitan-district-council/wolverhampton","SAINSBURYS (2340)","13.30","NQTs/Assessment","5411","Provisions (Not for resale)","16/09/2015"
"Wolverhampton City Council","http://opendatacommunities.org/id/metropolitan-district-council/wolverhampton","ONE STOP 1009","2.99","MAST 1 - Deansfield","5411","Provisions (Not for resale)","16/09/2015"
"Wolverhampton City Council","http://opendatacommunities.org/id/metropolitan-district-council/wolverhampton","WWW.OFFICEFURNITUREONL","185.00","College of Further Education","5943","Computing - Purchase of Hardware","16/09/2015"
"Wolverhampton City Council","http://opendatacommunities.org/id/metropolitan-district-council/wolverhampton","Q-SYSTEMS LIMITED","36.00","Catering Overhead Account","5999","Equipment - R & M","16/09/2015"
"Wolverhampton City Council","http://opendatacommunities.org/id/metropolitan-district-council/wolverhampton","SUPERCARE PHARMACY","16.27","Children & Family Contact Services","5912","Toilet Requisites","16/09/2015"
"Wolverhampton City Council","http://opendatacommunities.org/id/metropolitan-district-council/wolverhampton","SP  JUST CARDS PLUS","161.39","Technical Support","5734","Materials","16/09/2015"
"Wolverhampton City Council","http://opendatacommunities.org/id/metropolitan-district-council/wolverhampton","WILLENHALL FASTNERS LT","4.00","Caretakers Community Centre","5085","R&M - Departmental planned (external)","16/09/2015"
"Wolverhampton City Council","http://opendatacommunities.org/id/metropolitan-district-council/wolverhampton","Virgintrains.co.uk","127.30","City Direct","4112","Public Transport","16/09/2015"
"Wolverhampton City Council","http://opendatacommunities.org/id/metropolitan-district-council/wolverhampton","ASDA HOME SHOPPING","35.72","Ernest Bold Court","5411","Provisions (Not for resale)","16/09/2015"
"Wolverhampton City Council","http://opendatacommunities.org/id/metropolitan-district-council/wolverhampton","E01510300000000","50.00","Emergency Duty Team","6011","Financial Assistance In Exceptional Circ","16/09/2015"
"Wolverhampton City Council","http://opendatacommunities.org/id/metropolitan-district-council/wolverhampton","TRAINLINE","10.15","SEN Special Education Admin","4112","Public Transport","16/09/2015"
"Wolverhampton City Council","http://opendatacommunities.org/id/metropolitan-district-council/wolverhampton","JAMES LISTER & SONS LT","3.55","Caretakers Community Centre","5085","R&M - Departmental planned (external)","16/09/2015"
"Wolverhampton City Council","http://opendatacommunities.org/id/metropolitan-district-council/wolverhampton","TRAINLINE","17.29","Legal Services","4112","Public Transport","16/09/2015"
"Wolverhampton City Council","http://opendatacommunities.org/id/metropolitan-district-council/wolverhampton","Amazon UK Marketplace","11.49","Aldersley Leisure Village","5942","Equipment - Purchase","16/09/2015"
"Wolverhampton City Council","http://opendatacommunities.org/id/metropolitan-district-council/wolverhampton","ASDA HOME SHOPPING","72.26","Swan Bank","5411","Provisions (Not for resale)","16/09/2015"
"Wolverhampton City Council","http://opendatacommunities.org/id/metropolitan-district-council/wolverhampton","TVLICENSING.CO.UK","145.50","Duke Street Bungalows","7392","Services - General Licences","16/09/2015"
"Wolverhampton City Council","http://opendatacommunities.org/id/metropolitan-district-council/wolverhampton","POST OFFICE COUNTER","336.40","Looked After Team 1","9402","Comms - Postage","16/09/2015"
"Wolverhampton City Council","http://opendatacommunities.org/id/metropolitan-district-council/wolverhampton","DIAMOND PUBLISHING LTD","180.00","Civic Halls Non Direct Management A/C","2741","Marketing \ Non-staff advertising","16/09/2015"
"Wolverhampton City Council","http://opendatacommunities.org/id/metropolitan-district-council/wolverhampton","TRAINLINE","89.25","LAC Education Team (LACE)","4112","Public Transport","16/09/2015"
"Wolverhampton City Council","http://opendatacommunities.org/id/metropolitan-district-council/wolverhampton","OFFICE DEPOT","32.48","Fostering Team & Allowances","5111","Stationery","16/09/2015"
"Wolverhampton City Council","http://opendatacommunities.org/id/metropolitan-district-council/wolverhampton","FTPE WEBTIS 1","18.90","LAC Transitions Team","4112","Public Transport","16/09/2015"
"Wolverhampton City Council","http://opendatacommunities.org/id/metropolitan-district-council/wolverhampton","OFFICE DEPOT","75.58","Merry Hill House","5111","Stationery","16/09/2015"
"Wolverhampton City Council","http://opendatacommunities.org/id/metropolitan-district-council/wolverhampton","Virgintrains.co.uk","177.00","Corporate Procurement Unit","4112","Public Transport","16/09/2015"
"Wolverhampton City Council","http://opendatacommunities.org/id/metropolitan-district-council/wolverhampton","CENTURY ELECTRICAL WHO","12.60","Culwell Street Depot","5065","R&M - Departmental planned (external)","16/09/2015"
"Wolverhampton City Council","http://opendatacommunities.org/id/metropolitan-district-council/wolverhampton","WM MORRISON 024","45.71","Civic Centre Catering","5411","Provisions (Not for resale)","16/09/2015"
"Wolverhampton City Council","http://opendatacommunities.org/id/metropolitan-district-council/wolverhampton","SAINSBURYS SACAT (2340","0.80","Civic Centre Catering","5411","Provisions (Not for resale)","16/09/2015"
"Wolverhampton City Council","http://opendatacommunities.org/id/metropolitan-district-council/wolverhampton","POUNDLAND LTD 1463","3.33","LAC Transitions Team","5310","Equipment - Purchase","16/09/2015"
"Wolverhampton City Council","http://opendatacommunities.org/id/metropolitan-district-council/wolverhampton","ASDA HOME SHOPPING","0.54","Swan Bank","5411","Provisions (Not for resale)","16/09/2015"
"Wolverhampton City Council","http://opendatacommunities.org/id/metropolitan-district-council/wolverhampton","SAINSBURYS SACAT 2040","6.41","Ernest Bold Court","5411","Provisions (Not for resale)","16/09/2015"
"Wolverhampton City Council","http://opendatacommunities.org/id/metropolitan-district-council/wolverhampton","UOW PRINT SERVICES","223.61","City Marketing (Place)","8220","Printing","16/09/2015"
"Wolverhampton City Council","http://opendatacommunities.org/id/metropolitan-district-council/wolverhampton","Virgintrains.co.uk","-23.00","Private Sector Housing","4112","Public Transport","16/09/2015"
"Wolverhampton City Council","http://opendatacommunities.org/id/metropolitan-district-council/wolverhampton","CUMMINGS BROTHERS LOCK","25.50","Community Enablement","7399","Equipment - Purchase","16/09/2015"
"Wolverhampton City Council","http://opendatacommunities.org/id/metropolitan-district-council/wolverhampton","WWW.NISBETS.COM","339.78","Aldersley Leisure Village Bar","5964","Equipment - Purchase","16/09/2015"
"Wolverhampton City Council","http://opendatacommunities.org/id/metropolitan-district-council/wolverhampton","KFC MANDER CENTRE","4.98","Youth Service - General","5814","Educ Trips, Holidays, Outings, Activity","16/09/2015"
"Wolverhampton City Council","http://opendatacommunities.org/id/metropolitan-district-council/wolverhampton","TRFSA   THOMSONREUTERS","1624.40","Legal Services","8999","Subscriptions","16/09/2015"
"Wolverhampton City Council","http://opendatacommunities.org/id/metropolitan-district-council/wolverhampton","TESCO STORES 6727","7.65","Youth Offending Team","5411","Hospitality","15/09/2015"
"Wolverhampton City Council","http://opendatacommunities.org/id/metropolitan-district-council/wolverhampton","REGISTRARS OFFICE","9.90","Adoption and Residence Team & Allowances","8299","TPP - Placement Adoption","15/09/2015"
"Wolverhampton City Council","http://opendatacommunities.org/id/metropolitan-district-council/wolverhampton","ASDA SUPERSTORE","25.50","Whitmore Reans - CIN SWU S17","5411","Provisions (Not for resale)","15/09/2015"
"Wolverhampton City Council","http://opendatacommunities.org/id/metropolitan-district-council/wolverhampton","Amazon UK Marketplace","0.70","Aldersley Leisure Village","5942","Equipment - Purchase","15/09/2015"
"Wolverhampton City Council","http://opendatacommunities.org/id/metropolitan-district-council/wolverhampton","POST OFFICE COUNTER","2.36","Childrens with Disabilities Team","9402","Comms - Postage","15/09/2015"
"Wolverhampton City Council","http://opendatacommunities.org/id/metropolitan-district-council/wolverhampton","TRAINLINE","105.06","Children's Village - CIN SWU S17","4112","Public Transport","15/09/2015"
"Wolverhampton City Council","http://opendatacommunities.org/id/metropolitan-district-council/wolverhampton","ASDA SUPERSTORE","13.50","Whitmore Reans - CIN SWU S17","5411","Provisions (Not for resale)","15/09/2015"
"Wolverhampton City Council","http://opendatacommunities.org/id/metropolitan-district-council/wolverhampton","ILEX.ORG.UK","108.50","Legal Services","8699","Training Expenses","15/09/2015"
"Wolverhampton City Council","http://opendatacommunities.org/id/metropolitan-district-council/wolverhampton","WWW.BIRMINGHAM.GOV.UK","12.00","Adoption and Residence Team & Allowances","8299","TPP - Placement Adoption","15/09/2015"
"Wolverhampton City Council","http://opendatacommunities.org/id/metropolitan-district-council/wolverhampton","Amazon UK Marketplace","0.82","Aldersley Leisure Village","5942","Equipment - Purchase","15/09/2015"
"Wolverhampton City Council","http://opendatacommunities.org/id/metropolitan-district-council/wolverhampton","REGISTRARS OFFICE","0.10","Adoption and Residence Team & Allowances","8299","TPP - Placement Adoption","15/09/2015"
"Wolverhampton City Council","http://opendatacommunities.org/id/metropolitan-district-council/wolverhampton","WESTMINSTER FORUM","210.00","Corporate Procurement Unit","7392","Conference Expenses","15/09/2015"
"Wolverhampton City Council","http://opendatacommunities.org/id/metropolitan-district-council/wolverhampton","CUMMINGS BROTHERS LOCK","4.58","Parks - East Area Management","7399","Equipment - Purchase","15/09/2015"
"Wolverhampton City Council","http://opendatacommunities.org/id/metropolitan-district-council/wolverhampton","THE POST OFFICE","5.19","Audience Development","9402","Comms - Postage","15/09/2015"
"Wolverhampton City Council","http://opendatacommunities.org/id/metropolitan-district-council/wolverhampton","TRAINLINE","29.12","Looked After Team 1","4112","Public Transport","15/09/2015"
"Wolverhampton City Council","http://opendatacommunities.org/id/metropolitan-district-council/wolverhampton","OYSTER BUS AUTOSET","20.00","Legal Services","4112","Public Transport","15/09/2015"
"Wolverhampton City Council","http://opendatacommunities.org/id/metropolitan-district-council/wolverhampton","CUMMINGS BROTHERS LOCK","34.17","Wholesale Market Facilities Management","7399","R&M - Departmental planned (external)","15/09/2015"
"Wolverhampton City Council","http://opendatacommunities.org/id/metropolitan-district-council/wolverhampton","Amazon UK Marketplace","1.07","Aldersley Leisure Village","5942","Equipment - Purchase","15/09/2015"
"Wolverhampton City Council","http://opendatacommunities.org/id/metropolitan-district-council/wolverhampton","CENTURY ELECTRICAL WHO","6.50","Caretakers Community Centre","5065","R&M - Departmental planned (external)","15/09/2015"
"Wolverhampton City Council","http://opendatacommunities.org/id/metropolitan-district-council/wolverhampton","Amazon UK Marketplace","154.31","Technical Support","5942","Computing - Purchase of Hardware","15/09/2015"
"Wolverhampton City Council","http://opendatacommunities.org/id/metropolitan-district-council/wolverhampton","CARE SHOP","63.99","Specialist Support Service - North","5999","Cleaning Supplies and Materials","15/09/2015"
"Wolverhampton City Council","http://opendatacommunities.org/id/metropolitan-district-council/wolverhampton","ASDA SUPERSTORE","13.50","Whitmore Reans - CIN SWU S17","5411","Provisions (Not for resale)","15/09/2015"
"Wolverhampton City Council","http://opendatacommunities.org/id/metropolitan-district-council/wolverhampton","POST OFFICE COUNTER","235.00","Looked After Team 1","9402","Comms - Postage","15/09/2015"
"Wolverhampton City Council","http://opendatacommunities.org/id/metropolitan-district-council/wolverhampton","ASDA HOME SHOPPING","231.03","Upper Pendeford Farm Childrens Home","5411","Provisions (Not for resale)","15/09/2015"
"Wolverhampton City Council","http://opendatacommunities.org/id/metropolitan-district-council/wolverhampton","TVLICENSING.CO.UK","145.50","Court of Protection, Funerals Prot Prop","7392","Services - Supplies & Services to users","15/09/2015"
"Wolverhampton City Council","http://opendatacommunities.org/id/metropolitan-district-council/wolverhampton","ASDA HOME SHOPPING","1.31","Upper Pendeford Farm Childrens Home","5411","Provisions (Not for resale)","15/09/2015"
"Wolverhampton City Council","http://opendatacommunities.org/id/metropolitan-district-council/wolverhampton","WWW.VIKING-DIRECT.CO.U","77.97","Legal Services","5111","Stationery","15/09/2015"
"Wolverhampton City Council","http://opendatacommunities.org/id/metropolitan-district-council/wolverhampton","OFFICE DEPOT","32.95","Towers Outdoor Education Centre","5111","Equipment - Purchase","15/09/2015"
"Wolverhampton City Council","http://opendatacommunities.org/id/metropolitan-district-council/wolverhampton","COMBINED COURT","280.00","Rents Management","9222","Services - Fees and Charges","15/09/2015"
"Wolverhampton City Council","http://opendatacommunities.org/id/metropolitan-district-council/wolverhampton","ASDA SUPERSTORE","3.08","Upper Pendeford Farm Childrens Home","5411","Provisions (Not for resale)","15/09/2015"
"Wolverhampton City Council","http://opendatacommunities.org/id/metropolitan-district-council/wolverhampton","FTPE WEBTIS 1","31.70","LAC Transitions Team","4112","Public Transport","15/09/2015"
"Wolverhampton City Council","http://opendatacommunities.org/id/metropolitan-district-council/wolverhampton","Amazon UK Marketplace","2.71","Aldersley Leisure Village","5942","Equipment - Purchase","15/09/2015"
"Wolverhampton City Council","http://opendatacommunities.org/id/metropolitan-district-council/wolverhampton","B&M RETAIL","119.62","Aldersley Leisure Village","5310","Equipment - Purchase","15/09/2015"
"Wolverhampton City Council","http://opendatacommunities.org/id/metropolitan-district-council/wolverhampton","NEWSCO INSIDER LTD","80.00","Strategic Director Place","8999","Subscriptions","15/09/2015"
"Wolverhampton City Council","http://opendatacommunities.org/id/metropolitan-district-council/wolverhampton","Amazon Svcs Europe,SAR","1.10","Merry Hill House","5942","Books","14/09/2015"
"Wolverhampton City Council","http://opendatacommunities.org/id/metropolitan-district-council/wolverhampton","Virgintrains.co.uk","7.50","Economic Inclusion","4112","Public Transport","14/09/2015"
"Wolverhampton City Council","http://opendatacommunities.org/id/metropolitan-district-council/wolverhampton","TESCO STORES 5194","-3.20","Towers Outdoor Education Centre","5411","Provisions (Not for resale)","14/09/2015"
"Wolverhampton City Council","http://opendatacommunities.org/id/metropolitan-district-council/wolverhampton","TRAINLINE","216.75","AES Staff Development","4112","Public Transport","14/09/2015"
"Wolverhampton City Council","http://opendatacommunities.org/id/metropolitan-district-council/wolverhampton","ALTON TOWERS","84.00","MAST 7 - Berrybrook","7991","Educ Trips, Holidays, Outings, Activity","14/09/2015"
"Wolverhampton City Council","http://opendatacommunities.org/id/metropolitan-district-council/wolverhampton","BLAS AR FWYD CYF","138.85","Towers Outdoor Education Centre","5812","Educ Trips, Holidays, Outings, Activity","14/09/2015"
"Wolverhampton City Council","http://opendatacommunities.org/id/metropolitan-district-council/wolverhampton","MAPLIN WOLVERHAMPT WV1","11.65","Caretakers Community Centre","5732","R&M - Departmental planned (external)","14/09/2015"
"Wolverhampton City Council","http://opendatacommunities.org/id/metropolitan-district-council/wolverhampton","RYMAN","23.68","Children & Family Contact Services","5943","Stationery","14/09/2015"
"Wolverhampton City Council","http://opendatacommunities.org/id/metropolitan-district-council/wolverhampton","GRO HM PASSPORT OFFICE","23.40","Alfred Squire - CIN SWU S17","9399","Services - Fees and Charges","14/09/2015"
"Wolverhampton City Council","http://opendatacommunities.org/id/metropolitan-district-council/wolverhampton","TOOLSTATION LTD","5.80","Caretakers Community Centre","5251","R&M - Departmental planned (external)","14/09/2015"
"Wolverhampton City Council","http://opendatacommunities.org/id/metropolitan-district-council/wolverhampton","ASDA HOME SHOPPING","83.97","Ernest Bold Court","5411","Provisions (Not for resale)","14/09/2015"
"Wolverhampton City Council","http://opendatacommunities.org/id/metropolitan-district-council/wolverhampton","WEST MID TRAVEL","523.10","Youth Offending Team","4131","Public Transport","14/09/2015"
"Wolverhampton City Council","http://opendatacommunities.org/id/metropolitan-district-council/wolverhampton","THE WORKS 208","7.50","Children & Family Contact Services","5942","Stationery","14/09/2015"
"Wolverhampton City Council","http://opendatacommunities.org/id/metropolitan-district-council/wolverhampton","Virgintrains.co.uk","289.90","Art Gallery","4112","Public Transport","14/09/2015"
"Wolverhampton City Council","http://opendatacommunities.org/id/metropolitan-district-council/wolverhampton","ARGOS LTD","378.72","LAC Transitions Team","5310","Equipment - Purchase","14/09/2015"
"Wolverhampton City Council","http://opendatacommunities.org/id/metropolitan-district-council/wolverhampton","ASDA HOME SHOPPING","0.60","Ernest Bold Court","5411","Provisions (Not for resale)","14/09/2015"
"Wolverhampton City Council","http://opendatacommunities.org/id/metropolitan-district-council/wolverhampton","HOOTSUITE MEDIA INC.","83.88","Learning Technologies","7399","Computing - Purchase of Software","14/09/2015"
"Wolverhampton City Council","http://opendatacommunities.org/id/metropolitan-district-council/wolverhampton","ASDA SUPERSTORE","16.80","Aldersley Leisure Village Bar","5411","Provisions (Not for resale)","14/09/2015"
"Wolverhampton City Council","http://opendatacommunities.org/id/metropolitan-district-council/wolverhampton","WM MORRISON 024","0.50","Bert Williams Leisure Centre","5411","Provisions (Not for resale)","14/09/2015"
"Wolverhampton City Council","http://opendatacommunities.org/id/metropolitan-district-council/wolverhampton","FACEBOOK 6VLPL7NB92","600.00","Communications & Marketing - General","7311","Marketing \ Non-staff advertising","14/09/2015"
"Wolverhampton City Council","http://opendatacommunities.org/id/metropolitan-district-council/wolverhampton","WWW.ISTOCK.COM","313.00","City Direct","5971","Services - Professional Fees","14/09/2015"
"Wolverhampton City Council","http://opendatacommunities.org/id/metropolitan-district-council/wolverhampton","ASDA SUPERSTORE","24.51","Swan Bank","5411","Provisions (Not for resale)","14/09/2015"
"Wolverhampton City Council","http://opendatacommunities.org/id/metropolitan-district-council/wolverhampton","WH SMITH","50.00","Mayoral Expenses","5994","Hospitality","14/09/2015"
"Wolverhampton City Council","http://opendatacommunities.org/id/metropolitan-district-council/wolverhampton","OFFICE DEPOT","31.31","Ernest Bold Court","5111","Stationery","14/09/2015"
"Wolverhampton City Council","http://opendatacommunities.org/id/metropolitan-district-council/wolverhampton","WYNNSTAY ARGICULTURAL","165.82","Towers Outdoor Education Centre","5311","Fixtures and Fittings - Purchases","11/09/2015"
"Wolverhampton City Council","http://opendatacommunities.org/id/metropolitan-district-council/wolverhampton","BLAYDONCOMM","94.87","Bert Williams Leisure Centre","5732","Equipment - Purchase","11/09/2015"
"Wolverhampton City Council","http://opendatacommunities.org/id/metropolitan-district-council/wolverhampton","LICENSING SERVICES","21.00","Blakenhall Commty & Healthy Living Ctr","8299","Training Expenses","11/09/2015"
"Wolverhampton City Council","http://opendatacommunities.org/id/metropolitan-district-council/wolverhampton","WIX.COM","1.90","Technical Support","5734","Computing - Purchase of Software","11/09/2015"
"Wolverhampton City Council","http://opendatacommunities.org/id/metropolitan-district-council/wolverhampton","STERMAT CAR AND VAN HI","565.00","Towers Outdoor Education Centre","5521","Hire of Vehicles","11/09/2015"
"Wolverhampton City Council","http://opendatacommunities.org/id/metropolitan-district-council/wolverhampton","BILSTON CARPETS","147.00","Bilston 2 - CIN SWU S17","5713","Fixtures and Fittings - Purchases","11/09/2015"
"Wolverhampton City Council","http://opendatacommunities.org/id/metropolitan-district-council/wolverhampton","CUMMINGS BROTHERS LOCK","12.92","Caretakers Community Centre","7399","R&M - Departmental planned (external)","11/09/2015"
"Wolverhampton City Council","http://opendatacommunities.org/id/metropolitan-district-council/wolverhampton","Virgintrains.co.uk","71.20","Welfare Rights","4112","Public Transport","11/09/2015"
"Wolverhampton City Council","http://opendatacommunities.org/id/metropolitan-district-council/wolverhampton","Virgintrains.co.uk","166.80","Future People","4112","Public Transport","11/09/2015"
"Wolverhampton City Council","http://opendatacommunities.org/id/metropolitan-district-council/wolverhampton","TESCO STORES 6197","89.21","Windmill Lane - Respite Home","5411","Provisions (Not for resale)","11/09/2015"
"Wolverhampton City Council","http://opendatacommunities.org/id/metropolitan-district-council/wolverhampton","OFFICE DEPOT","33.94","Adoption and Residence Team & Allowances","5111","Stationery","11/09/2015"
"Wolverhampton City Council","http://opendatacommunities.org/id/metropolitan-district-council/wolverhampton","LICENSING SERVICES","-21.00","Blakenhall Commty & Healthy Living Ctr","8299","Training Expenses","11/09/2015"
"Wolverhampton City Council","http://opendatacommunities.org/id/metropolitan-district-council/wolverhampton","Amazon EU","-11.46","Parks - East Area Management","5969","Equipment - Purchase","11/09/2015"
"Wolverhampton City Council","http://opendatacommunities.org/id/metropolitan-district-council/wolverhampton","ASDA HOME SHOPPING","83.36","Swan Bank","5411","Provisions (Not for resale)","11/09/2015"
"Wolverhampton City Council","http://opendatacommunities.org/id/metropolitan-district-council/wolverhampton","ASDA HOME SHOPPING","1.87","Swan Bank","5411","Provisions (Not for resale)","11/09/2015"
"Wolverhampton City Council","http://opendatacommunities.org/id/metropolitan-district-council/wolverhampton","OFFICE DEPOT","17.76","LAC Admin Team","5111","Stationery","11/09/2015"
"Wolverhampton City Council","http://opendatacommunities.org/id/metropolitan-district-council/wolverhampton","ROYAL MAIL  0845606040","1.54","Mayoral Expenses","9402","Comms - Postage","11/09/2015"
"Wolverhampton City Council","http://opendatacommunities.org/id/metropolitan-district-council/wolverhampton","WWW.PROJECTOR-SCRE","197.00","Contemporary Gallery","5943","Stationery","11/09/2015"
"Wolverhampton City Council","http://opendatacommunities.org/id/metropolitan-district-council/wolverhampton","ROMAN","33.33","Mayoral Expenses","5621","Clothing / Uniforms","11/09/2015"
"Wolverhampton City Council","http://opendatacommunities.org/id/metropolitan-district-council/wolverhampton","OFFICE DEPOT","228.97","LAC Admin Team","5111","Stationery","11/09/2015"
"Wolverhampton City Council","http://opendatacommunities.org/id/metropolitan-district-council/wolverhampton","WM MORRISON 024","14.91","Civic Centre Catering","5411","Provisions (Not for resale)","11/09/2015"
"Wolverhampton City Council","http://opendatacommunities.org/id/metropolitan-district-council/wolverhampton","HN NUTTALL LTD","452.61","Towers Outdoor Education Centre","5085","Equipment - Purchase","11/09/2015"
"Wolverhampton City Council","http://opendatacommunities.org/id/metropolitan-district-council/wolverhampton","ALDI","8.97","Children & Family Contact Services","5411","Cleaning Supplies and Materials","11/09/2015"
"Wolverhampton City Council","http://opendatacommunities.org/id/metropolitan-district-council/wolverhampton","PREMIER INN","81.75","Headstart Wolverhampton","3811","Services - Supplies & Services to users","11/09/2015"
"Wolverhampton City Council","http://opendatacommunities.org/id/metropolitan-district-council/wolverhampton","FUEL CARD SERVICES LTD","164.80","Towers Outdoor Education Centre","7399","Petrol","10/09/2015"
"Wolverhampton City Council","http://opendatacommunities.org/id/metropolitan-district-council/wolverhampton","OFFICE DEPOT","13.58","Private Sector Housing","5111","Stationery","10/09/2015"
"Wolverhampton City Council","http://opendatacommunities.org/id/metropolitan-district-council/wolverhampton","C L JONES LIMITED","598.41","Towers Outdoor Education Centre","5211","Fixtures and Fittings - Purchases","10/09/2015"
"Wolverhampton City Council","http://opendatacommunities.org/id/metropolitan-district-council/wolverhampton","REDWINGS LODGE","-32.95","Valley Park - CIN SWU S17","7011","Accommodation Costs","10/09/2015"
"Wolverhampton City Council","http://opendatacommunities.org/id/metropolitan-district-council/wolverhampton","NETWORK WEST MIDLANDS","80.00","Valley Park - CIN SWU S17","9399","Financial Assistance In Exceptional Circ","10/09/2015"
"Wolverhampton City Council","http://opendatacommunities.org/id/metropolitan-district-council/wolverhampton","THE ABINGTON HOTEL","115.00","LAC Transitions Team","7011","Services - Supplies & Services to users","10/09/2015"
"Wolverhampton City Council","http://opendatacommunities.org/id/metropolitan-district-council/wolverhampton","WEST COAST TRAINS","519.60","Public Health Support Costs","4112","Public Transport","10/09/2015"
"Wolverhampton City Council","http://opendatacommunities.org/id/metropolitan-district-council/wolverhampton","SACAT MARKS & SPENCER","3.75","Mayoral Expenses","5411","Hospitality","10/09/2015"
"Wolverhampton City Council","http://opendatacommunities.org/id/metropolitan-district-council/wolverhampton","WEST COAST TRAINS","5.40","Technical Material","4112","Public Transport","10/09/2015"
"Wolverhampton City Council","http://opendatacommunities.org/id/metropolitan-district-council/wolverhampton","TRAINLINE","86.19","Older People Assessment & Care Mgmt","4112","Public Transport","10/09/2015"
"Wolverhampton City Council","http://opendatacommunities.org/id/metropolitan-district-council/wolverhampton","GREEN LEEVS","245.00","Learning Technologies","5193","Materials","10/09/2015"
"Wolverhampton City Council","http://opendatacommunities.org/id/metropolitan-district-council/wolverhampton","PARCELFORCE WORLDWIDE","10.82","Audience R & D","4214","Comms - Postage","10/09/2015"
"Wolverhampton City Council","http://opendatacommunities.org/id/metropolitan-district-council/wolverhampton","WOLVES CC","58.93","Whitmore Reans - CIN SWU S17","9399","Services - Fees and Charges","10/09/2015"
"Wolverhampton City Council","http://opendatacommunities.org/id/metropolitan-district-council/wolverhampton","TRAINLINE","106.59","AES Staff Development","4112","Public Transport","10/09/2015"
"Wolverhampton City Council","http://opendatacommunities.org/id/metropolitan-district-council/wolverhampton","TRAINLINE","34.83","Adoption and Residence Team & Allowances","4112","Public Transport","10/09/2015"
"Wolverhampton City Council","http://opendatacommunities.org/id/metropolitan-district-council/wolverhampton","Virgintrains.co.uk","191.60","Macmillan Welfare Rights","4112","Public Transport","10/09/2015"
"Wolverhampton City Council","http://opendatacommunities.org/id/metropolitan-district-council/wolverhampton","OFFICE DEPOT","66.90","Education Catering - General Overheads","5111","Stationery","10/09/2015"
"Wolverhampton City Council","http://opendatacommunities.org/id/metropolitan-district-council/wolverhampton","Amazon EU","20.68","Children's Village Children Centre","5969","Stationery","10/09/2015"
"Wolverhampton City Council","http://opendatacommunities.org/id/metropolitan-district-council/wolverhampton","HSBC INVOICE FINAN","985.40","Towers Outdoor Education Centre","6012","Laundry Expenses","10/09/2015"
"Wolverhampton City Council","http://opendatacommunities.org/id/metropolitan-district-council/wolverhampton","Virgintrains.co.uk","215.50","Macmillan Welfare Rights","4112","Public Transport","10/09/2015"
"Wolverhampton City Council","http://opendatacommunities.org/id/metropolitan-district-council/wolverhampton","Amazon UK Marketplace","37.52","Aldersley Leisure Village","5942","Equipment - Purchase","10/09/2015"
"Wolverhampton City Council","http://opendatacommunities.org/id/metropolitan-district-council/wolverhampton","Amazon UK Marketplace","31.05","Adoption and Residence Team & Allowances","5942","Books","10/09/2015"
"Wolverhampton City Council","http://opendatacommunities.org/id/metropolitan-district-council/wolverhampton","THE POST OFFICE","117.00","Valley Park - CIN SWU S17","9402","Comms - Postage","10/09/2015"
"Wolverhampton City Council","http://opendatacommunities.org/id/metropolitan-district-council/wolverhampton","CLAREGATE S.STN FS408","18.84","Aldersley Leisure Village","5541","Equipment - Purchase","10/09/2015"
"Wolverhampton City Council","http://opendatacommunities.org/id/metropolitan-district-council/wolverhampton","PAYPAL  ANDROULLA ANDR","46.73","Bantock House Museum - Exhibitions","8999","Services - Professional Fees","10/09/2015"
"Wolverhampton City Council","http://opendatacommunities.org/id/metropolitan-district-council/wolverhampton","Amazon UK Marketplace","28.49","Merry Hill House","5942","Equipment - Purchase","10/09/2015"
"Wolverhampton City Council","http://opendatacommunities.org/id/metropolitan-district-council/wolverhampton","TRAINLINE","42.07","Hostels / Outreach","4112","Public Transport","10/09/2015"
"Wolverhampton City Council","http://opendatacommunities.org/id/metropolitan-district-council/wolverhampton","WP-HEMMING GROUP L","42.00","Strategic Director Place","7399","Subscriptions","10/09/2015"
"Wolverhampton City Council","http://opendatacommunities.org/id/metropolitan-district-council/wolverhampton","NATWEST BANK","47.50","MAST 2 - Bilston","6011","Clothing / Uniforms","10/09/2015"
"Wolverhampton City Council","http://opendatacommunities.org/id/metropolitan-district-council/wolverhampton","WELDTITE PRODUCTS LTD","650.00","Road Safety","5940","Equipment - Purchase","10/09/2015"
"Wolverhampton City Council","http://opendatacommunities.org/id/metropolitan-district-council/wolverhampton","CHEMSOL CYMRU LTD","416.17","Towers Outdoor Education Centre","5199","Fixtures and Fittings - Purchases","10/09/2015"
"Wolverhampton City Council","http://opendatacommunities.org/id/metropolitan-district-council/wolverhampton","WM MORRISON 024","5.18","MAST 2 - Bilston","5411","Training Expenses","10/09/2015"
"Wolverhampton City Council","http://opendatacommunities.org/id/metropolitan-district-council/wolverhampton","OFFICE DEPOT","-1.13","Brokerage Team","5111","Stationery","10/09/2015"
"Wolverhampton City Council","http://opendatacommunities.org/id/metropolitan-district-council/wolverhampton","GOV.UK/DART-CHARGE","5.00","Adoption and Residence Team & Allowances","4784","TPP - Placement Adoption","10/09/2015"
"Wolverhampton City Council","http://opendatacommunities.org/id/metropolitan-district-council/wolverhampton","BHS 072","85.33","Mayoral Expenses","5311","Clothing / Uniforms","10/09/2015"
"Wolverhampton City Council","http://opendatacommunities.org/id/metropolitan-district-council/wolverhampton","CUMMINGS BROTHERS LOCK","15.00","Caretakers Community Centre","7399","R&M - Departmental planned (external)","09/09/2015"
"Wolverhampton City Council","http://opendatacommunities.org/id/metropolitan-district-council/wolverhampton","ROCHDALE BWIDE HSG","12.26","LAC Transitions Team","9399","Services - Fees and Charges","09/09/2015"
"Wolverhampton City Council","http://opendatacommunities.org/id/metropolitan-district-council/wolverhampton","REGISTRARS OFFICE","30.00","Adoption and Residence Team & Allowances","8299","TPP - Placement Adoption","09/09/2015"
"Wolverhampton City Council","http://opendatacommunities.org/id/metropolitan-district-council/wolverhampton","WEST COAST TRAINS","117.25","Physical & Sensory Disabilities Mgmt","4112","Public Transport","09/09/2015"
"Wolverhampton City Council","http://opendatacommunities.org/id/metropolitan-district-council/wolverhampton","GEO E DAVIES","8.32","Community Enablement","5732","Equipment - Purchase","09/09/2015"
"Wolverhampton City Council","http://opendatacommunities.org/id/metropolitan-district-council/wolverhampton","Amazon UK Marketplace","99.75","College of Further Education","5942","Computing - Consumables","09/09/2015"
"Wolverhampton City Council","http://opendatacommunities.org/id/metropolitan-district-council/wolverhampton","OFFICE DEPOT","117.00","Macmillan Welfare Rights","5111","Comms - Postage","09/09/2015"
"Wolverhampton City Council","http://opendatacommunities.org/id/metropolitan-district-council/wolverhampton","ROYAL MAIL  0845606040","1.54","Mayoral Expenses","9402","Hospitality","09/09/2015"
"Wolverhampton City Council","http://opendatacommunities.org/id/metropolitan-district-council/wolverhampton","Amazon UK Marketplace","3.51","Parent / Partnership Service","5942","Catering","09/09/2015"
"Wolverhampton City Council","http://opendatacommunities.org/id/metropolitan-district-council/wolverhampton","WEST MID TRAVEL","201.85","Bilston 2 - CIN SWU S17","4131","Public Transport","09/09/2015"
"Wolverhampton City Council","http://opendatacommunities.org/id/metropolitan-district-council/wolverhampton","MY STUDENT PACK LIMITE","110.00","LAC Transitions Team","5712","Equipment - Purchase","09/09/2015"
"Wolverhampton City Council","http://opendatacommunities.org/id/metropolitan-district-council/wolverhampton","OFFICE DEPOT","88.36","LAC Transitions Team","5111","Stationery","09/09/2015"
"Wolverhampton City Council","http://opendatacommunities.org/id/metropolitan-district-council/wolverhampton","TFM FARM & COUNTRY SUP","89.72","Northicote Farm","5399","Equipment - Purchase","09/09/2015"
"Wolverhampton City Council","http://opendatacommunities.org/id/metropolitan-district-council/wolverhampton","WWW.STAPLES.CO.UK","37.72","Whitmore Reans - CIN SWU S17","5943","Stationery","09/09/2015"
"Wolverhampton City Council","http://opendatacommunities.org/id/metropolitan-district-council/wolverhampton","CURRYS ONLINE","124.98","Mental Health Assessment & Care Mgmt","5732","Equipment - Purchase","09/09/2015"
"Wolverhampton City Council","http://opendatacommunities.org/id/metropolitan-district-council/wolverhampton","Virgintrains.co.uk","53.60","Members Expenses","4112","Public Transport","09/09/2015"
"Wolverhampton City Council","http://opendatacommunities.org/id/metropolitan-district-council/wolverhampton","BETWS MOTORS LTD","487.40","Towers Outdoor Education Centre","7538","Vehicle Maintenance - Repairs","09/09/2015"
"Wolverhampton City Council","http://opendatacommunities.org/id/metropolitan-district-council/wolverhampton","TESCO STORE 3414","20.00","School Crossing Patrol","5411","Equipment - Purchase","09/09/2015"
"Wolverhampton City Council","http://opendatacommunities.org/id/metropolitan-district-council/wolverhampton","OFFICE DEPOT","251.76","Customer Services","5111","Stationery","09/09/2015"
"Wolverhampton City Council","http://opendatacommunities.org/id/metropolitan-district-council/wolverhampton","WEST MID TRAVEL","195.00","Bilston 1 - CIN SWU S17","4131","Public Transport","09/09/2015"
"Wolverhampton City Council","http://opendatacommunities.org/id/metropolitan-district-council/wolverhampton","Amazon Svcs Europe,SAR","1.11","College of Further Education","5942","Computing - Consumables","09/09/2015"
"Wolverhampton City Council","http://opendatacommunities.org/id/metropolitan-district-council/wolverhampton","Amazon UK Marketplace","36.21","Children's Village Children Centre","5942","Stationery","09/09/2015"
"Wolverhampton City Council","http://opendatacommunities.org/id/metropolitan-district-council/wolverhampton","ARGOS LTD","12.49","Cemeteries","5310","Equipment - Purchase","09/09/2015"
"Wolverhampton City Council","http://opendatacommunities.org/id/metropolitan-district-council/wolverhampton","WM MORRISON 024","13.48","Civic Centre Catering","5411","Catering","09/09/2015"
"Wolverhampton City Council","http://opendatacommunities.org/id/metropolitan-district-council/wolverhampton","CILEX LAW SCHOOL LIMIT","10.00","Legal Services","8244","Training Expenses","09/09/2015"
"Wolverhampton City Council","http://opendatacommunities.org/id/metropolitan-district-council/wolverhampton","Amazon Svcs Europe,SAR","14.97","Aldersley Leisure Village Bar","5942","Stationery","09/09/2015"
"Wolverhampton City Council","http://opendatacommunities.org/id/metropolitan-district-council/wolverhampton","SCREWFIX DIRECT","70.81","College of Further Education","5211","Fixtures and Fittings - Purchases","09/09/2015"
"Wolverhampton City Council","http://opendatacommunities.org/id/metropolitan-district-council/wolverhampton","Amazon EU","69.64","Children's Village Children Centre","5969","Equipment - Purchase","09/09/2015"
"Wolverhampton City Council","http://opendatacommunities.org/id/metropolitan-district-council/wolverhampton","SURVEYMONKEY.COM","249.17","Corporate Policy and Equalities","4816","Computing - Purchase of Software","09/09/2015"
"Wolverhampton City Council","http://opendatacommunities.org/id/metropolitan-district-council/wolverhampton","TESCO STORES 5194","226.89","Towers Outdoor Education Centre","5411","Provisions (Not for resale)","09/09/2015"
"Wolverhampton City Council","http://opendatacommunities.org/id/metropolitan-district-council/wolverhampton","WICKES","32.49","Youth Offending Team","5211","Equipment - Purchase","09/09/2015"
"Wolverhampton City Council","http://opendatacommunities.org/id/metropolitan-district-council/wolverhampton","WWW.HPA.ORG.UK","115.00","Transformation","2741","Conference Expenses","09/09/2015"
"Wolverhampton City Council","http://opendatacommunities.org/id/metropolitan-district-council/wolverhampton","Virgintrains.co.uk","16.70","Travelwise","4112","Public Transport","09/09/2015"
"Wolverhampton City Council","http://opendatacommunities.org/id/metropolitan-district-council/wolverhampton","WM MORRISON 024","49.25","Ernest Bold Court","5411","Provisions (Not for resale)","09/09/2015"
"Wolverhampton City Council","http://opendatacommunities.org/id/metropolitan-district-council/wolverhampton","WWW.DERBY.GOV.UK","11.20","Looked After Team 1","9399","Services - Fees and Charges","09/09/2015"
"Wolverhampton City Council","http://opendatacommunities.org/id/metropolitan-district-council/wolverhampton","CURRYS ONLINE","165.83","Aldersley Leisure Village","5732","Equipment - Purchase","09/09/2015"
"Wolverhampton City Council","http://opendatacommunities.org/id/metropolitan-district-council/wolverhampton","POST OFFICE COUNTER","99.81","Music Support Team","9402","Comms - Postage","09/09/2015"
"Wolverhampton City Council","http://opendatacommunities.org/id/metropolitan-district-council/wolverhampton","SAIN WEDNESFIELD","100.00","Duke Street Bungalows","6011","Client Transport","08/09/2015"
"Wolverhampton City Council","http://opendatacommunities.org/id/metropolitan-district-council/wolverhampton","Amazon UK Marketplace","14.99","Parks - East Area Management","5942","Equipment - Purchase","08/09/2015"
"Wolverhampton City Council","http://opendatacommunities.org/id/metropolitan-district-council/wolverhampton","OFFICE DEPOT","23.28","Welfare Rights","5111","Stationery","08/09/2015"
"Wolverhampton City Council","http://opendatacommunities.org/id/metropolitan-district-council/wolverhampton","ASDA HOME SHOPPING","238.58","Upper Pendeford Farm Childrens Home","5411","Provisions (Not for resale)","08/09/2015"
"Wolverhampton City Council","http://opendatacommunities.org/id/metropolitan-district-council/wolverhampton","WWW.BLOOMSBURY.COM","17.34","Big Ceramics","5942","Books","08/09/2015"
"Wolverhampton City Council","http://opendatacommunities.org/id/metropolitan-district-council/wolverhampton","ARGOS RETAIL GROUP","16.66","Traffic Signals","5310","Equipment - Purchase","08/09/2015"
"Wolverhampton City Council","http://opendatacommunities.org/id/metropolitan-district-council/wolverhampton","BARCLAYS BANK PLC","70.00","MAST 4 - Warstones","6011","Grant Payments","08/09/2015"
"Wolverhampton City Council","http://opendatacommunities.org/id/metropolitan-district-council/wolverhampton","DENNIS WILLIAMS","53.36","LAC Transitions Team","7230","Equipment - Purchase","08/09/2015"
"Wolverhampton City Council","http://opendatacommunities.org/id/metropolitan-district-council/wolverhampton","FINESSE CARPETS LTD","80.00","Bilston 2 - CIN SWU S17","5713","Fixtures and Fittings - Purchases","08/09/2015"
"Wolverhampton City Council","http://opendatacommunities.org/id/metropolitan-district-council/wolverhampton","ASDA HOME SHOPPING","39.36","Ernest Bold Court","5411","Provisions (Not for resale)","08/09/2015"
"Wolverhampton City Council","http://opendatacommunities.org/id/metropolitan-district-council/wolverhampton","CARPET BARGAINS","225.00","LAC Transitions Team","5713","Equipment - Purchase","08/09/2015"
"Wolverhampton City Council","http://opendatacommunities.org/id/metropolitan-district-council/wolverhampton","Amazon UK Marketplace","6.50","Children's Village Children Centre","5942","Equipment - Purchase","08/09/2015"
"Wolverhampton City Council","http://opendatacommunities.org/id/metropolitan-district-council/wolverhampton","Amazon Svcs Europe,SAR","129.25","College of Further Education","5942","Computing - Consumables","08/09/2015"
"Wolverhampton City Council","http://opendatacommunities.org/id/metropolitan-district-council/wolverhampton","SAIN WEDNESFIELD","100.00","Duke Street Bungalows","6011","Client Transport","08/09/2015"
"Wolverhampton City Council","http://opendatacommunities.org/id/metropolitan-district-council/wolverhampton","Virgintrains.co.uk","56.60","Looked After Team 2","4112","Public Transport","08/09/2015"
"Wolverhampton City Council","http://opendatacommunities.org/id/metropolitan-district-council/wolverhampton","ARGOS RETAIL GROUP","26.78","Bilston 2 - CIN SWU S17","5310","Provisions (Not for resale)","08/09/2015"
"Wolverhampton City Council","http://opendatacommunities.org/id/metropolitan-district-council/wolverhampton","GEO E DAVIES","64.40","Community Enablement","5732","Equipment - Purchase","08/09/2015"
"Wolverhampton City Council","http://opendatacommunities.org/id/metropolitan-district-council/wolverhampton","ASDA HOME SHOPPING","10.18","Upper Pendeford Farm Childrens Home","5411","Provisions (Not for resale)","08/09/2015"
"Wolverhampton City Council","http://opendatacommunities.org/id/metropolitan-district-council/wolverhampton","ASDA HOME SHOPPING","0.95","Ernest Bold Court","5411","Provisions (Not for resale)","08/09/2015"
"Wolverhampton City Council","http://opendatacommunities.org/id/metropolitan-district-council/wolverhampton","Amazon UK Marketplace","2.76","College of Further Education","5942","Computing - Consumables","08/09/2015"
"Wolverhampton City Council","http://opendatacommunities.org/id/metropolitan-district-council/wolverhampton","Virgintrains.co.uk","72.05","Planning","4112","Public Transport","08/09/2015"
"Wolverhampton City Council","http://opendatacommunities.org/id/metropolitan-district-council/wolverhampton","ARGOS RETAIL GROUP","209.98","MAST 7 - Berrybrook","5310","Contributions - Other Organisations","07/09/2015"
"Wolverhampton City Council","http://opendatacommunities.org/id/metropolitan-district-council/wolverhampton","GOLD SUPERSTORE","2.83","Learning Disabilities Management","5251","Equipment - Purchase","07/09/2015"
"Wolverhampton City Council","http://opendatacommunities.org/id/metropolitan-district-council/wolverhampton","ASDA HOME SHOPPING","76.14","Swan Bank","5411","Provisions (Not for resale)","07/09/2015"
"Wolverhampton City Council","http://opendatacommunities.org/id/metropolitan-district-council/wolverhampton","AirServer Licenses","69.90","Technical Support","5817","Computing - Purchase of Software","07/09/2015"
"Wolverhampton City Council","http://opendatacommunities.org/id/metropolitan-district-council/wolverhampton","SAINSBURYS 2040","80.60","Children's Village Children Centre","5411","Provisions (Not for resale)","07/09/2015"
"Wolverhampton City Council","http://opendatacommunities.org/id/metropolitan-district-council/wolverhampton","ARGOS RETAIL GROUP","147.93","MAST 7 - Berrybrook","5310","Equipment - Purchase","07/09/2015"
"Wolverhampton City Council","http://opendatacommunities.org/id/metropolitan-district-council/wolverhampton","NOTEMACHINE","250.00","Childrens with Disabilities Team","6011","Client Allowances","07/09/2015"
"Wolverhampton City Council","http://opendatacommunities.org/id/metropolitan-district-council/wolverhampton","SAINSBURYS 2040","3.33","Duke Street Bungalows","5411","Stationery","07/09/2015"
"Wolverhampton City Council","http://opendatacommunities.org/id/metropolitan-district-council/wolverhampton","Amazon UK Marketplace","21.57","Children's Village Children Centre","5942","Equipment - Purchase","07/09/2015"
"Wolverhampton City Council","http://opendatacommunities.org/id/metropolitan-district-council/wolverhampton","REES PAGE SOLICITORS","255.62","Head of Service - CINCP","8111","Services - Professional Fees","07/09/2015"
"Wolverhampton City Council","http://opendatacommunities.org/id/metropolitan-district-council/wolverhampton","HOMEBASE LTD 103","30.07","Caretakers Community Centre","5211","R&M - Departmental planned (external)","07/09/2015"
"Wolverhampton City Council","http://opendatacommunities.org/id/metropolitan-district-council/wolverhampton","Amazon UK Marketplace","17.55","CIN - Bilston CC2 - Area 2","5942","Books","07/09/2015"
"Wolverhampton City Council","http://opendatacommunities.org/id/metropolitan-district-council/wolverhampton","ARGOS RETAIL GROUP","14.99","MAST 7 - Berrybrook","5310","Equipment - Purchase","07/09/2015"
"Wolverhampton City Council","http://opendatacommunities.org/id/metropolitan-district-council/wolverhampton","ASDA HOME SHOPPING","-0.04","Swan Bank","5411","Provisions (Not for resale)","07/09/2015"
"Wolverhampton City Council","http://opendatacommunities.org/id/metropolitan-district-council/wolverhampton","REDWINGS LODGE","6.37","Valley Park - CIN SWU S17","7011","Accommodation Costs","07/09/2015"
"Wolverhampton City Council","http://opendatacommunities.org/id/metropolitan-district-council/wolverhampton","ASDA HOME SHOPPING","-0.03","Ernest Bold Court","5411","Provisions (Not for resale)","07/09/2015"
"Wolverhampton City Council","http://opendatacommunities.org/id/metropolitan-district-council/wolverhampton","ASDA STORES","17.10","Aldersley Leisure Village","5411","Stationery","07/09/2015"
"Wolverhampton City Council","http://opendatacommunities.org/id/metropolitan-district-council/wolverhampton","ARGOS LTD","24.93","Children's Village Nursery","5310","Equipment - Purchase","07/09/2015"
"Wolverhampton City Council","http://opendatacommunities.org/id/metropolitan-district-council/wolverhampton","NETWORK WEST MIDLANDS","117.00","Windsor - CIN SWU S17","9399","Client Transport","07/09/2015"
"Wolverhampton City Council","http://opendatacommunities.org/id/metropolitan-district-council/wolverhampton","WCC RUGBY REG OFFICE","10.00","Childrens with Disabilities Team","9399","Client Allowances","07/09/2015"
"Wolverhampton City Council","http://opendatacommunities.org/id/metropolitan-district-council/wolverhampton","COMBINED COURT","100.00","Rents Management","9222","Services - Fees and Charges","07/09/2015"
"Wolverhampton City Council","http://opendatacommunities.org/id/metropolitan-district-council/wolverhampton","REDWINGS LODGE","21.12","Valley Park - CIN SWU S17","7011","Accommodation Costs","07/09/2015"
"Wolverhampton City Council","http://opendatacommunities.org/id/metropolitan-district-council/wolverhampton","SCREWFIX DIRECT","104.97","College of Further Education","5211","Fixtures and Fittings - Purchases","07/09/2015"
"Wolverhampton City Council","http://opendatacommunities.org/id/metropolitan-district-council/wolverhampton","Amazon UK Marketplace","14.80","Children's Village Children Centre","5942","Equipment - Purchase","07/09/2015"
"Wolverhampton City Council","http://opendatacommunities.org/id/metropolitan-district-council/wolverhampton","FACEBOOK KYQ4T7EB92","600.04","Communications & Marketing - General","7311","Marketing \ Non-staff advertising","07/09/2015"
"Wolverhampton City Council","http://opendatacommunities.org/id/metropolitan-district-council/wolverhampton","ASDA HOME SHOPPING","69.70","Ernest Bold Court","5411","Provisions (Not for resale)","07/09/2015"
"Wolverhampton City Council","http://opendatacommunities.org/id/metropolitan-district-council/wolverhampton","ARGOS LTD","49.98","Alfred Squire - CIN SWU S17","5310","Furniture","07/09/2015"
"Wolverhampton City Council","http://opendatacommunities.org/id/metropolitan-district-council/wolverhampton","OFFICE DEPOT","7.36","MAST 6 - Priory Green","5111","Stationery","07/09/2015"
"Wolverhampton City Council","http://opendatacommunities.org/id/metropolitan-district-council/wolverhampton","NEXT DIRECTORY","73.32","LAC Transitions Team","5651","Client Allowances","07/09/2015"
"Wolverhampton City Council","http://opendatacommunities.org/id/metropolitan-district-council/wolverhampton","REDWINGS LODGE","233.87","Alfred Squire - CIN SWU S17","7011","Accommodation Costs","07/09/2015"
"Wolverhampton City Council","http://opendatacommunities.org/id/metropolitan-district-council/wolverhampton","Amazon UK Marketplace","61.05","School Improvement","5942","Equipment - Purchase","07/09/2015"
"Wolverhampton City Council","http://opendatacommunities.org/id/metropolitan-district-council/wolverhampton","THE POST OFFICE","36.02","CIN - Windsor CC - Area 3","9402","Comms - Postage","07/09/2015"
"Wolverhampton City Council","http://opendatacommunities.org/id/metropolitan-district-council/wolverhampton","ROYAL BK OF SCOTLAND","100.00","Duke Street Bungalows","6011","Client Transport","07/09/2015"
"Wolverhampton City Council","http://opendatacommunities.org/id/metropolitan-district-council/wolverhampton","Amazon UK Marketplace","6.25","Parks - East Area Management","5942","Equipment - Purchase","07/09/2015"
"Wolverhampton City Council","http://opendatacommunities.org/id/metropolitan-district-council/wolverhampton","ARGOS RETAIL GROUP","133.32","LAC Transitions Team","5310","Equipment - Purchase","07/09/2015"
"Wolverhampton City Council","http://opendatacommunities.org/id/metropolitan-district-council/wolverhampton","Amazon UK Marketplace","22.41","Parks - East Area Management","5942","Equipment - Purchase","07/09/2015"
"Wolverhampton City Council","http://opendatacommunities.org/id/metropolitan-district-council/wolverhampton","TRAINLINE","25.45","Berries - CIN SWU S17","4112","Public Transport","07/09/2015"
"Wolverhampton City Council","http://opendatacommunities.org/id/metropolitan-district-council/wolverhampton","BHS 072","17.33","Mayoral Expenses","5311","Clothing / Uniforms","07/09/2015"
"Wolverhampton City Council","http://opendatacommunities.org/id/metropolitan-district-council/wolverhampton","PAYPAL  THEROTA","171.99","Civic Halls Non Direct Management A/C","5735","Marketing \ Non-staff advertising","07/09/2015"
"Wolverhampton City Council","http://opendatacommunities.org/id/metropolitan-district-council/wolverhampton","REDWINGS LODGE","100.71","Valley Park - CIN SWU S17","7011","Accommodation Costs","07/09/2015"
"Wolverhampton City Council","http://opendatacommunities.org/id/metropolitan-district-council/wolverhampton","SAINSBURYS SACAT (2340","11.30","College of Further Education","5411","Provisions (Not for resale)","07/09/2015"
"Wolverhampton City Council","http://opendatacommunities.org/id/metropolitan-district-council/wolverhampton","Amazon EU","36.77","CIN - Bilston CC2 - Area 2","5969","Books","07/09/2015"
"Wolverhampton City Council","http://opendatacommunities.org/id/metropolitan-district-council/wolverhampton","NEXT DIRECTORY","416.66","LAC Transitions Team","5651","Services - Supplies & Services to users","07/09/2015"
"Wolverhampton City Council","http://opendatacommunities.org/id/metropolitan-district-council/wolverhampton","Amazon UK Marketplace","1.99","Parks - East Area Management","5942","Equipment - Purchase","04/09/2015"
"Wolverhampton City Council","http://opendatacommunities.org/id/metropolitan-district-council/wolverhampton","WWW.FENLANDLEISURE.CO.","157.08","Parks - East Area Management","5641","Equipment - Purchase","04/09/2015"
"Wolverhampton City Council","http://opendatacommunities.org/id/metropolitan-district-council/wolverhampton","Amazon EU","35.85","Children's Village Children Centre","5969","Equipment - Purchase","04/09/2015"
"Wolverhampton City Council","http://opendatacommunities.org/id/metropolitan-district-council/wolverhampton","B&M RETAIL","31.96","LAC Transitions Team","5310","Equipment - Purchase","04/09/2015"
"Wolverhampton City Council","http://opendatacommunities.org/id/metropolitan-district-council/wolverhampton","WWW.CWTECHNOLOGIES.CO.","48.99","Parks - East Area Management","5085","Equipment - Purchase","04/09/2015"
"Wolverhampton City Council","http://opendatacommunities.org/id/metropolitan-district-council/wolverhampton","LONDON MIDLAND INT","9.40","Service Director Disab & Mental Health","4112","Public Transport","04/09/2015"
"Wolverhampton City Council","http://opendatacommunities.org/id/metropolitan-district-council/wolverhampton","WM MORRISON 024","9.15","Ernest Bold Court","5411","Provisions (Not for resale)","04/09/2015"
"Wolverhampton City Council","http://opendatacommunities.org/id/metropolitan-district-council/wolverhampton","WWW.FENLANDLEISURE.CO.","44.17","Parks - East Area Management","5641","Equipment - Purchase","04/09/2015"
"Wolverhampton City Council","http://opendatacommunities.org/id/metropolitan-district-council/wolverhampton","Amazon EU","115.76","Communications & Marketing - General","5969","Equipment - Purchase","04/09/2015"
"Wolverhampton City Council","http://opendatacommunities.org/id/metropolitan-district-council/wolverhampton","TRAINLINE","182.07","Revenues","4112","Public Transport","04/09/2015"
"Wolverhampton City Council","http://opendatacommunities.org/id/metropolitan-district-council/wolverhampton","HMCOURTS-SERVICE.G","291.00","Revenues","9222","Services - Fees and Charges","04/09/2015"
"Wolverhampton City Council","http://opendatacommunities.org/id/metropolitan-district-council/wolverhampton","CROMWELL TOOLS","69.00","Fleet Management","5072","Equipment - Purchase","04/09/2015"
"Wolverhampton City Council","http://opendatacommunities.org/id/metropolitan-district-council/wolverhampton","ARGOS LTD","318.58","LAC Transitions Team","5310","Equipment - Purchase","04/09/2015"
"Wolverhampton City Council","http://opendatacommunities.org/id/metropolitan-district-council/wolverhampton","NETWORK WEST MIDLANDS","40.00","Whitmore Reans - CIN SWU S17","9399","Services - Fees and Charges","04/09/2015"
"Wolverhampton City Council","http://opendatacommunities.org/id/metropolitan-district-council/wolverhampton","HMCOURTS-SERVICE.G","8028.00","Revenues","9222","Services - Fees and Charges","04/09/2015"
"Wolverhampton City Council","http://opendatacommunities.org/id/metropolitan-district-council/wolverhampton","B & Q","19.17","Caretakers Community Centre","5211","R&M - Departmental planned (external)","04/09/2015"
"Wolverhampton City Council","http://opendatacommunities.org/id/metropolitan-district-council/wolverhampton","TESCO STORE 3414","6.00","Mayoral Expenses","5411","Hospitality","04/09/2015"
"Wolverhampton City Council","http://opendatacommunities.org/id/metropolitan-district-council/wolverhampton","OFFICE DEPOT","16.85","Brokerage Team","5111","Stationery","04/09/2015"
"Wolverhampton City Council","http://opendatacommunities.org/id/metropolitan-district-council/wolverhampton","ROYAL MAIL  0845606040","1.11","Revenues","9402","Comms - Postage","04/09/2015"
"Wolverhampton City Council","http://opendatacommunities.org/id/metropolitan-district-council/wolverhampton","WAITROSE 696","8.29","Restorative Justice","5411","Hospitality","04/09/2015"
"Wolverhampton City Council","http://opendatacommunities.org/id/metropolitan-district-council/wolverhampton","WHITMORE REANS GLASS","3.33","Aldersley Leisure Village","5231","Equipment - Purchase","04/09/2015"
"Wolverhampton City Council","http://opendatacommunities.org/id/metropolitan-district-council/wolverhampton","HI READING M4 J10","-445.50","Civic Hall Administration Overhead Acct","7011","Accommodation Costs","04/09/2015"
"Wolverhampton City Council","http://opendatacommunities.org/id/metropolitan-district-council/wolverhampton","KIDS CORNER","65.75","Alfred Squire - CIN SWU S17","5641","Clothing / Uniforms","04/09/2015"
"Wolverhampton City Council","http://opendatacommunities.org/id/metropolitan-district-council/wolverhampton","Amazon EU","11.46","Parks - East Area Management","5969","Equipment - Purchase","04/09/2015"
"Wolverhampton City Council","http://opendatacommunities.org/id/metropolitan-district-council/wolverhampton","OFFICE DEPOT","24.92","Assessment Team (West)","5111","Stationery","04/09/2015"
"Wolverhampton City Council","http://opendatacommunities.org/id/metropolitan-district-council/wolverhampton","POST OFFICE COUNTER","6.45","Adoption and Residence Team & Allowances","9402","Comms - Postage","04/09/2015"
"Wolverhampton City Council","http://opendatacommunities.org/id/metropolitan-district-council/wolverhampton","Amazon EU","62.92","Children's Village Children Centre","5969","Equipment - Purchase","04/09/2015"
"Wolverhampton City Council","http://opendatacommunities.org/id/metropolitan-district-council/wolverhampton","NOTEMACHINE","250.00","Priory Green - CIN SWU S17","6011","Financial Assistance In Exceptional Circ","04/09/2015"
"Wolverhampton City Council","http://opendatacommunities.org/id/metropolitan-district-council/wolverhampton","HMCOURTS-SERVICE.G","7050.00","Revenues","9222","Services - Fees and Charges","04/09/2015"
"Wolverhampton City Council","http://opendatacommunities.org/id/metropolitan-district-council/wolverhampton","CUMMINGS BROTHERS LOCK","20.00","Assessment Team (West)","7399","Equipment - Purchase","04/09/2015"
"Wolverhampton City Council","http://opendatacommunities.org/id/metropolitan-district-council/wolverhampton","ARGOS RETAIL GROUP","51.92","Children's Village Children Centre","5310","Equipment - Purchase","04/09/2015"
"Wolverhampton City Council","http://opendatacommunities.org/id/metropolitan-district-council/wolverhampton","CUMMINGS BROTHERS LOCK","10.00","Parks - Ranger Service","7399","Equipment - Purchase","04/09/2015"
"Wolverhampton City Council","http://opendatacommunities.org/id/metropolitan-district-council/wolverhampton","EE LIMITED 4415","-0.89","Civic Hall Administration Overhead Acct","4812","Comms - Mobile Telephones","03/09/2015"
"Wolverhampton City Council","http://opendatacommunities.org/id/metropolitan-district-council/wolverhampton","EE LIMITED 4415","0.89","Civic Hall Administration Overhead Acct","4812","Comms - Mobile Telephones","03/09/2015"
"Wolverhampton City Council","http://opendatacommunities.org/id/metropolitan-district-council/wolverhampton","COMBINED COURT","2465.00","Legal Services","9222","Services - Fees and Charges","03/09/2015"
"Wolverhampton City Council","http://opendatacommunities.org/id/metropolitan-district-council/wolverhampton","WWW.NEOPOST.CO.UK","103.00","Central Costs","5111","Stationery","03/09/2015"
"Wolverhampton City Council","http://opendatacommunities.org/id/metropolitan-district-council/wolverhampton","WWW.ICO.GOV.UK","35.00","Members Expenses","9399","Subscriptions","03/09/2015"
"Wolverhampton City Council","http://opendatacommunities.org/id/metropolitan-district-council/wolverhampton","ARGOS LTD","26.66","College of Further Education","5310","Computing - Purchase of Hardware","03/09/2015"
"Wolverhampton City Council","http://opendatacommunities.org/id/metropolitan-district-council/wolverhampton","REDWINGS LODGE","79.90","Referral Team CIN - S17","7011","Accommodation Costs","03/09/2015"
"Wolverhampton City Council","http://opendatacommunities.org/id/metropolitan-district-council/wolverhampton","EE LIMITED 4415","59.99","Civic Hall Administration Overhead Acct","4812","Comms - Mobile Telephones","03/09/2015"
"Wolverhampton City Council","http://opendatacommunities.org/id/metropolitan-district-council/wolverhampton","NETWORK WEST MIDLANDS","200.00","Graiseley - CIN SWU S17","9399","Services - Fees and Charges","03/09/2015"
"Wolverhampton City Council","http://opendatacommunities.org/id/metropolitan-district-council/wolverhampton","CUMMINGS BROTHERS LOCK","26.67","Wholesale Market Facilities Management","7399","R&M - Departmental planned (external)","03/09/2015"
"Wolverhampton City Council","http://opendatacommunities.org/id/metropolitan-district-council/wolverhampton","OFFICE DEPOT","14.03","Aldersley Leisure Village Bar","5111","Stationery","03/09/2015"
"Wolverhampton City Council","http://opendatacommunities.org/id/metropolitan-district-council/wolverhampton","ONE STOP 1009","29.25","Bilston 2 - CIN SWU S17","5411","Client Transport","03/09/2015"
"Wolverhampton City Council","http://opendatacommunities.org/id/metropolitan-district-council/wolverhampton","E09009100000000","80.00","MAST 3 - Graiseley","6011","Clothing / Uniforms","03/09/2015"
"Wolverhampton City Council","http://opendatacommunities.org/id/metropolitan-district-council/wolverhampton","PARCELFORCE WORLDWIDE","13.67","Audience R & D","4214","Comms - Postage","03/09/2015"
"Wolverhampton City Council","http://opendatacommunities.org/id/metropolitan-district-council/wolverhampton","OFFICE DEPOT","409.15","Children & Young People Support Costs","5111","Stationery","03/09/2015"
"Wolverhampton City Council","http://opendatacommunities.org/id/metropolitan-district-council/wolverhampton","CUMMINGS BROTHERS LOCK","4.17","Caretakers Community Centre","7399","R&M - Departmental planned (external)","03/09/2015"
"Wolverhampton City Council","http://opendatacommunities.org/id/metropolitan-district-council/wolverhampton","TRAINLINE","191.86","Adoption and Residence Team & Allowances","4112","Public Transport","03/09/2015"
"Wolverhampton City Council","http://opendatacommunities.org/id/metropolitan-district-council/wolverhampton","WWW.REASEHEATH.AC.UK","100.00","LAC Transitions Team","8299","Training Expenses","03/09/2015"
"Wolverhampton City Council","http://opendatacommunities.org/id/metropolitan-district-council/wolverhampton","CARVER/WOLVERHAMPTON/L","44.22","Northicote Farm","5211","Materials","03/09/2015"
"Wolverhampton City Council","http://opendatacommunities.org/id/metropolitan-district-council/wolverhampton","OFFICE DEPOT","1.60","Street Lighting Maintenance","5111","Stationery","03/09/2015"
"Wolverhampton City Council","http://opendatacommunities.org/id/metropolitan-district-council/wolverhampton","WWW.CILEX LAW SC.AC.UK","18.00","Legal Services","8244","Training Expenses","03/09/2015"
"Wolverhampton City Council","http://opendatacommunities.org/id/metropolitan-district-council/wolverhampton","OFFICE DEPOT","84.26","Street Lighting Maintenance","5111","Stationery","03/09/2015"
"Wolverhampton City Council","http://opendatacommunities.org/id/metropolitan-district-council/wolverhampton","TRAINLINE","147.70","Looked After Team 1","4112","Public Transport","03/09/2015"
"Wolverhampton City Council","http://opendatacommunities.org/id/metropolitan-district-council/wolverhampton","WEST COAST TRAINS","104.95","Graiseley - CIN SWU S17","4112","Public Transport","03/09/2015"
"Wolverhampton City Council","http://opendatacommunities.org/id/metropolitan-district-council/wolverhampton","Virgintrains.co.uk","44.50","Travelwise","4112","Public Transport","03/09/2015"
"Wolverhampton City Council","http://opendatacommunities.org/id/metropolitan-district-council/wolverhampton","ASDA SUPERSTORE","9.04","Swan Bank","5411","Provisions (Not for resale)","03/09/2015"
"Wolverhampton City Council","http://opendatacommunities.org/id/metropolitan-district-council/wolverhampton","TRAVELODGE","52.92","Safeguarding Admin Resource","3615","Services - Supplies & Services to users","03/09/2015"
"Wolverhampton City Council","http://opendatacommunities.org/id/metropolitan-district-council/wolverhampton","KABA LTD","195.27","Technician","5965","Equipment - Purchase","03/09/2015"
"Wolverhampton City Council","http://opendatacommunities.org/id/metropolitan-district-council/wolverhampton","WHATEVERHAPPENS/KNOWHO","5.50","Pupil Premium","5968","Subscriptions","03/09/2015"
"Wolverhampton City Council","http://opendatacommunities.org/id/metropolitan-district-council/wolverhampton","BLAYDONCOMM","82.40","Bert Williams Leisure Centre","5732","Equipment - Purchase","03/09/2015"
"Wolverhampton City Council","http://opendatacommunities.org/id/metropolitan-district-council/wolverhampton","UNITED CARPETS & BEDS","208.33","Valley Park - CIN SWU S17","5713","Financial Assistance In Exceptional Circ","03/09/2015"
"Wolverhampton City Council","http://opendatacommunities.org/id/metropolitan-district-council/wolverhampton","WWW.MAPLIN.CO.UK","1.49","Technical Material","5732","Equipment - Purchase","02/09/2015"
"Wolverhampton City Council","http://opendatacommunities.org/id/metropolitan-district-council/wolverhampton","ASDA HOME SHOPPING","35.47","Ernest Bold Court","5411","Provisions (Not for resale)","02/09/2015"
"Wolverhampton City Council","http://opendatacommunities.org/id/metropolitan-district-council/wolverhampton","REGISTRARS OFFICE","58.00","Legal Services","8299","Training Expenses","02/09/2015"
"Wolverhampton City Council","http://opendatacommunities.org/id/metropolitan-district-council/wolverhampton","ASDA SUPERSTORE","6.25","Civic Centre Catering","5411","Provisions (Not for resale)","02/09/2015"
"Wolverhampton City Council","http://opendatacommunities.org/id/metropolitan-district-council/wolverhampton","POST OFFICE COUNTER","4.40","Bradley Resource Centre","9402","Comms - Postage","02/09/2015"
"Wolverhampton City Council","http://opendatacommunities.org/id/metropolitan-district-council/wolverhampton","TRAINLINE","57.83","Adoption and Residence Team & Allowances","4112","Public Transport","02/09/2015"
"Wolverhampton City Council","http://opendatacommunities.org/id/metropolitan-district-council/wolverhampton","ASDA HOME SHOPPING","-1.00","Ernest Bold Court","5411","Provisions (Not for resale)","02/09/2015"
"Wolverhampton City Council","http://opendatacommunities.org/id/metropolitan-district-council/wolverhampton","THE CARPET FACTORY","280.00","Windsor - CIN SWU S17","5713","Equipment - Purchase","02/09/2015"
"Wolverhampton City Council","http://opendatacommunities.org/id/metropolitan-district-council/wolverhampton","TFM FARM & COUNTRY SUP","35.50","Northicote Farm","5399","Equipment - Purchase","02/09/2015"
"Wolverhampton City Council","http://opendatacommunities.org/id/metropolitan-district-council/wolverhampton","RICHERSOUNDS.COM","95.77","Central Baths","5732","Equipment - Purchase","02/09/2015"
"Wolverhampton City Council","http://opendatacommunities.org/id/metropolitan-district-council/wolverhampton","DOG INK LIMITED","63.97","City Direct","5111","Stationery","02/09/2015"
"Wolverhampton City Council","http://opendatacommunities.org/id/metropolitan-district-council/wolverhampton","CARVER/WOLVERHAMPTON/L","12.65","Wholesale Market Facilities Management","5211","Cleaning Supplies and Materials","02/09/2015"
"Wolverhampton City Council","http://opendatacommunities.org/id/metropolitan-district-council/wolverhampton","Amazon EU","132.30","Communications & Marketing - General","5969","Equipment - Purchase","02/09/2015"
"Wolverhampton City Council","http://opendatacommunities.org/id/metropolitan-district-council/wolverhampton","FACEBOOK 7N78X7AD22","100.00","College of Further Education","7311","Marketing \ Non-staff advertising","01/09/2015"
"Wolverhampton City Council","http://opendatacommunities.org/id/metropolitan-district-council/wolverhampton","FACEBOOK V3ST28JR92","279.03","Civic Hall Administration Overhead Acct","7311","Marketing \ Non-staff advertising","01/09/2015"
"Wolverhampton City Council","http://opendatacommunities.org/id/metropolitan-district-council/wolverhampton","ASDA HOME SHOPPING","109.68","Upper Pendeford Farm Childrens Home","5411","Provisions (Not for resale)","01/09/2015"
"Wolverhampton City Council","http://opendatacommunities.org/id/metropolitan-district-council/wolverhampton","Amazon UK Marketplace","2.29","MAST 6 - Priory Green","5942","Stationery","01/09/2015"
"Wolverhampton City Council","http://opendatacommunities.org/id/metropolitan-district-council/wolverhampton","FACEBOOK ASX4S7EB92","67.27","Communications & Marketing - General","7311","Marketing \ Non-staff advertising","01/09/2015"
